Workbook

Sheet Chart
F1: Note: You must enable macros for this workbook to update correctly
B2: =Data!AP181 -> STL | C2: =Data!AQ181 -> 0 | D2: =Data!AR181 -> 0.5617283951
B3: =Data!AP182 -> MIL | C3: =Data!AQ182 -> 2 | D3: =Data!AR182 -> 0.549382716
B4: =Data!AP183 -> CHC | C4: =Data!AQ183 -> 7 | D4: =Data!AR183 -> 0.5185185185
B5: =Data!AP184 -> CIN | C5: =Data!AQ184 -> 16 | D5: =Data!AR184 -> 0.462962963
B6: =Data!AP185 -> PIT | C6: =Data!AQ185 -> 22 | D6: =Data!AR185 -> 0.4259259259
F52: Y-Axis = First-Place Lead Size (Brewers) (# of games)

Sheet Data
A1: NLC19 | B1: CHC | C1: W | D1: L | F1: CIN | G1: W | H1: L | J1: MIL | K1: W | L1: L | N1: PIT | O1: W | P1: L | R1: STL | S1: W | T1: L | V1: 2018 | W1: W | X1: L | AA1: =B1 -> CHC | AB1: =F1 -> CIN | AC1: =J1 -> MIL | AD1: =N1 -> PIT | AE1: =R1 -> STL | AF1: =V1 -> 2018 | AH1: =AA1 -> CHC | AI1: =AB1 -> CIN | AJ1: =AC1 -> MIL | AK1: =AD1 -> PIT | AL1: =AE1 -> STL
A2: 2019-03-27 | C2: 0 | D2: 0 | G2: 0 | H2: 0 | K2: 0 | L2: 0 | O2: 0 | P2: 0 | S2: 0 | T2: 0 | W2: 0 | X2: 0 | AA2: 0 | AB2: 0 | AC2: 0 | AD2: 0 | AE2: 0 | AF2: 0 | AH2: 0 | AI2: 0 | AJ2: 0 | AK2: 0 | AL2: 0 | AT2: =IF(AJ2 = 0, MIN(AH2:AI2, AK2:AL2), 0-AJ2) -> 0
A3: 2019-03-28 | B3: 1 | C3: =C2+IF(B3>0,B3,0) -> 1 | D3: =D2-IF(B3<0,B3,0) -> 0 | F3: 1 | G3: =G2+IF(F3>0,F3,0) -> 1 | H3: =H2-IF(F3<0,F3,0) -> 0 | J3: 1 | K3: =K2+IF(J3>0,J3,0) -> 1 | L3: =L2-IF(J3<0,J3,0) -> 0 | N3: -1 | O3: =O2+IF(N3>0,N3,0) -> 0 | P3: =P2-IF(N3<0,N3,0) -> 1 | R3: -1 | S3: =S2+IF(R3>0,R3,0) -> 0 | T3: =T2-IF(R3<0,R3,0) -> 1 | V3: 1 | W3: =W2+IF(V3>0,V3,0) -> 1 | X3: =X2-IF(V3<0,V3,0) -> 0 | AA3: =C3-D3 -> 1 | AB3: =G3-H3 -> 1 | AC3: =K3-L3 -> 1 | AD3: =O3-P3 -> -1 | AE3: =S3-T3 -> -1 | AF3: =W3-X3 -> 1 | AH3: =(MAX($AA3:$AE3)-AA3)/2 -> 0 | AI3: =(MAX($AA3:$AE3)-AB3)/2 -> 0 | AJ3: =(MAX($AA3:$AE3)-AC3)/2 -> 0 | AK3: =(MAX($AA3:$AE3)-AD3)/2 -> 1 | AL3: =(MAX($AA3:$AE3)-AE3)/2 -> 1 | AP3: =AP181 -> STL | AQ3: 0 | AR3: 0.5617283951 | AT3: 0
A4: 2019-03-29 | C4: =C3+IF(B4>0,B4,0) -> 1 | D4: =D3-IF(B4<0,B4,0) -> 0 | G4: 1 | H4: 0 | J4: -1 | K4: 1 | L4: 1 | O4: 0 | P4: 1 | R4: 1 | S4: 1 | T4: 1 | V4: 1 | W4: 2 | X4: 0 | AA4: 1 | AB4: 1 | AC4: 0 | AD4: -1 | AE4: 0 | AF4: 2 | AH4: =(MAX($AA4:$AE4)-AA4)/2 -> 0 | AI4: =(MAX($AA4:$AE4)-AB4)/2 -> 0 | AJ4: =(MAX($AA4:$AE4)-AC4)/2 -> 0.5 | AK4: =(MAX($AA4:$AE4)-AD4)/2 -> 1 | AL4: =(MAX($AA4:$AE4)-AE4)/2 -> 0.5 | AP4: MIL | AQ4: 2 | AR4: 0.549382716 | AT4: -0.5
A5: 2019-03-30 | B5: -1 | C5: 1 | D5: 1 | G5: 1 | H5: 0 | J5: 1 | K5: 2 | L5: 1 | O5: 0 | P5: 1 | R5: -1 | S5: 1 | T5: 2 | V5: 1 | W5: 3 | X5: 0 | AA5: 0 | AB5: 1 | AC5: 1 | AD5: -1 | AE5: -1 | AF5: 3 | AH5: 0.5 | AI5: 0 | AJ5: 0 | AK5: 1 | AL5: 1 | AP5: CHC | AQ5: 7 | AR5: 0.5185185185 | AT5: 0
A6: 2019-03-31 | B6: -1 | C6: 1 | D6: 2 | F6: -1 | G6: 1 | H6: 1 | J6: 1 | K6: 3 | L6: 1 | N6: 1 | O6: 1 | P6: 1 | R6: -1 | S6: 1 | T6: 3 | W6: 3 | X6: 0 | AA6: -1 | AB6: 0 | AC6: 2 | AD6: 0 | AE6: -2 | AF6: 3 | AH6: 1.5 | AI6: 1 | AJ6: 0 | AK6: 1 | AL6: 2 | AP6: CIN | AQ6: 16 | AR6: 0.462962963 | AT6: 1
A7: 2019-04-01 | B7: -1 | C7: 1 | D7: 3 | F7: -1 | G7: 1 | H7: 2 | J7: 1 | K7: 4 | L7: 1 | N7: -1 | O7: 1 | P7: 2 | R7: 1 | S7: 2 | T7: 3 | V7: -1 | W7: 3 | X7: 1 | AA7: -2 | AB7: -1 | AC7: 3 | AD7: -1 | AE7: -1 | AF7: 2 | AH7: 2.5 | AI7: 2 | AJ7: 0 | AK7: 2 | AL7: 2 | AP7: PIT | AQ7: 22 | AR7: 0.4259259259 | AT7: 2
A8: 2019-04-02 | C8: 1 | D8: 3 | F8: -1 | G8: 1 | H8: 3 | J8: 1 | K8: 5 | L8: 1 | O8: 1 | P8: 2 | S8: 2 | T8: 3 | V8: 1 | W8: 4 | X8: 1 | AA8: -2 | AB8: -2 | AC8: 4 | AD8: -1 | AE8: -1 | AF8: 3 | AH8: 3 | AI8: 3 | AJ8: 0 | AK8: 2.5 | AL8: 2.5 | AT8: 2.5
A9: 2019-04-03 | B9: -1 | C9: 1 | D9: 4 | F9: -1 | G9: 1 | H9: 4 | J9: 1 | K9: 6 | L9: 1 | N9: -1 | O9: 1 | P9: 3 | R9: 1 | S9: 3 | T9: 3 | V9: -1 | W9: 4 | X9: 2 | AA9: -3 | AB9: -3 | AC9: 5 | AD9: -2 | AE9: 0 | AF9: 2 | AH9: 4 | AI9: 4 | AJ9: 0 | AK9: 3.5 | AL9: 2.5 | AT9: 2.5
A10: 2019-04-04 | B10: -1 | C10: 1 | D10: 5 | F10: -1 | G10: 1 | H10: 5 | K10: 6 | L10: 1 | N10: 1 | O10: 2 | P10: 3 | S10: 3 | T10: 3 | V10: -1 | W10: 4 | X10: 3 | AA10: -4 | AB10: -4 | AC10: 5 | AD10: -1 | AE10: 0 | AF10: 1 | AH10: 4.5 | AI10: 4.5 | AJ10: 0 | AK10: 3 | AL10: 2.5 | AT10: 2.5
A11: 2019-04-05 | B11: -1 | C11: 1 | D11: 6 | F11: -1 | G11: 1 | H11: 6 | J11: 1 | K11: 7 | L11: 1 | N11: 1 | O11: 3 | P11: 3 | R11: -1 | S11: 3 | T11: 4 | V11: 1 | W11: 5 | X11: 3 | AA11: -5 | AB11: -5 | AC11: 6 | AD11: 0 | AE11: -1 | AF11: 2 | AH11: 5.5 | AI11: 5.5 | AJ11: 0 | AK11: 3 | AL11: 3.5 | AT11: 3
A12: 2019-04-06 | B12: 1 | C12: 2 | D12: 6 | F12: -1 | G12: 1 | H12: 7 | J12: -1 | K12: 7 | L12: 2 | N12: 1 | O12: 4 | P12: 3 | R12: -1 | S12: 3 | T12: 5 | V12: -1 | W12: 5 | X12: 4 | AA12: -4 | AB12: -6 | AC12: 5 | AD12: 1 | AE12: -2 | AF12: 1 | AH12: 4.5 | AI12: 5.5 | AJ12: 0 | AK12: 2 | AL12: 3.5 | AT12: 2
A13: 2019-04-07 | B13: -1 | C13: 2 | D13: 7 | F13: -1 | G13: 1 | H13: 8 | J13: 1 | K13: 8 | L13: 2 | N13: 1 | O13: 5 | P13: 3 | R13: 1 | S13: 4 | T13: 5 | V13: -1 | W13: 5 | X13: 5 | AA13: -5 | AB13: -7 | AC13: 6 | AD13: 2 | AE13: -1 | AF13: 0 | AH13: 5.5 | AI13: 6.5 | AJ13: 0 | AK13: 2 | AL13: 3.5 | AT13: 2
A14: 2019-04-08 | B14: 1 | C14: 3 | D14: 7 | G14: 1 | H14: 8 | J14: -1 | K14: 8 | L14: 3 | N14: -1 | O14: 5 | P14: 4 | R14: 1 | S14: 5 | T14: 5 | V14: 1 | W14: 6 | X14: 5 | AA14: -4 | AB14: -7 | AC14: 5 | AD14: 1 | AE14: 0 | AF14: 1 | AH14: 4.5 | AI14: 6 | AJ14: 0 | AK14: 2 | AL14: 2.5 | AT14: 2
A15: 2019-04-09 | C15: 3 | D15: 7 | F15: 1 | G15: 2 | H15: 8 | J15: -1 | K15: 8 | L15: 4 | O15: 5 | P15: 4 | R15: 1 | S15: 6 | T15: 5 | V15: -1 | W15: 6 | X15: 6 | AA15: -4 | AB15: -6 | AC15: 4 | AD15: 1 | AE15: 1 | AF15: 0 | AH15: 4 | AI15: 5 | AJ15: 0 | AK15: 1.5 | AL15: 1.5 | AT15: 1.5
A16: 2019-04-10 | B16: -1 | C16: 3 | D16: 8 | F16: 1 | G16: 3 | H16: 8 | J16: -1 | K16: 8 | L16: 5 | N16: 1 | O16: 6 | P16: 4 | R16: 1 | S16: 7 | T16: 5 | V16: 1 | W16: 7 | X16: 6 | AA16: -5 | AB16: -5 | AC16: 3 | AD16: 2 | AE16: 2 | AF16: 1 | AH16: 4 | AI16: 4 | AJ16: 0 | AK16: 0.5 | AL16: 0.5 | AT16: 0.5
A17: 2019-04-11 | B17: 1 | C17: 4 | D17: 8 | F17: 1 | G17: 4 | H17: 8 | K17: 8 | L17: 5 | N17: -1 | O17: 6 | P17: 5 | R17: 1 | S17: 8 | T17: 5 | W17: 7 | X17: 6 | AA17: -4 | AB17: -4 | AC17: 3 | AD17: 1 | AE17: 3 | AF17: 1 | AH17: 3.5 | AI17: 3.5 | AJ17: 0 | AK17: 1 | AL17: 0 | AT17: 0
A18: 2019-04-12 | B18: 1 | C18: 5 | D18: 8 | G18: 4 | H18: 8 | J18: 1 | K18: 9 | L18: 5 | N18: 1 | O18: 7 | P18: 5 | S18: 8 | T18: 5 | V18: -1 | W18: 7 | X18: 7 | AA18: -3 | AB18: -4 | AC18: 4 | AD18: 2 | AE18: 3 | AF18: 0 | AH18: 3.5 | AI18: 4 | AJ18: 0 | AK18: 1 | AL18: 0.5 | AT18: 0.5
A19: 2019-04-13 | B19: -1 | C19: 5 | D19: 9 | F19: 1 | G19: 5 | H19: 8 | J19: 1 | K19: 10 | L19: 5 | N19: -1 | O19: 7 | P19: 6 | R19: -1 | S19: 8 | T19: 6 | V19: 1 | W19: 8 | X19: 7 | AA19: -4 | AB19: -3 | AC19: 5 | AD19: 1 | AE19: 2 | AF19: 1 | AH19: 4.5 | AI19: 4 | AJ19: 0 | AK19: 2 | AL19: 1.5 | AT19: 1.5
A20: 2019-04-14 | C20: 5 | D20: 9 | F20: -1 | G20: 5 | H20: 9 | J20: -1 | K20: 10 | L20: 6 | N20: 1 | O20: 8 | P20: 6 | R20: 1 | S20: 9 | T20: 6 | V20: -1 | W20: 8 | X20: 8 | AA20: -4 | AB20: -4 | AC20: 4 | AD20: 2 | AE20: 3 | AF20: 0 | AH20: 4 | AI20: 4 | AJ20: 0 | AK20: 1 | AL20: 0.5 | AT20: 0.5
A21: 2019-04-15 | B21: 1 | C21: 6 | D21: 9 | F21: -1 | G21: 5 | H21: 10 | J21: 1 | K21: 11 | L21: 6 | O21: 8 | P21: 6 | R21: -1 | S21: 9 | T21: 7 | V21: -1 | W21: 8 | X21: 9 | AA21: -3 | AB21: -5 | AC21: 5 | AD21: 2 | AE21: 2 | AF21: -1 | AH21: 4 | AI21: 5 | AJ21: 0 | AK21: 1.5 | AL21: 1.5 | AT21: 1.5
A22: 2019-04-16 | B22: 1 | C22: 7 | D22: 9 | F22: -1 | G22: 5 | H22: 11 | J22: 1 | K22: 12 | L22: 6 | N22: 1 | O22: 9 | P22: 6 | R22: -1 | S22: 9 | T22: 8 | V22: 1 | W22: 9 | X22: 9 | AA22: -2 | AB22: -6 | AC22: 6 | AD22: 3 | AE22: 1 | AF22: 0 | AH22: 4 | AI22: 6 | AJ22: 0 | AK22: 1.5 | AL22: 2.5 | AT22: 1.5
A23: 2019-04-17 | B23: 1 | C23: =C22+IF(B23>0,B23,0) -> 8 | D23: =D22-IF(B23<0,B23,0) -> 9 | F23: -1 | G23: 5 | H23: 12 | J23: -1 | K23: 12 | L23: 7 | N23: 1 | O23: =O22+IF(N23>0,N23,0) -> 10 | P23: =P22-IF(N23<0,N23,0) -> 6 | R23: 1 | S23: =S22+IF(R23>0,R23,0) -> 10 | T23: =T22-IF(R23<0,R23,0) -> 8 | V23: 1 | W23: 10 | X23: 9 | AA23: -1 | AB23: -7 | AC23: 5 | AD23: 4 | AE23: 2 | AF23: 1 | AH23: 3 | AI23: 6 | AJ23: 0 | AK23: 0.5 | AL23: 1.5 | AT23: 0.5
A24: 2019-04-18 | C24: 8 | D24: 9 | F24: 1 | G24: 6 | H24: 12 | J24: -1 | K24: 12 | L24: 8 | O24: 10 | P24: 6 | S24: 10 | T24: 8 | V24: 1 | W24: 11 | X24: 9 | AA24: -1 | AB24: -6 | AC24: 4 | AD24: 4 | AE24: 2 | AF24: 2 | AH24: 2.5 | AI24: 5 | AJ24: 0 | AK24: 0 | AL24: 1 | AT24: 0
A25: 2019-04-19 | B25: 1 | C25: 9 | D25: 9 | F25: 1 | G25: 7 | H25: 12 | J25: -1 | K25: 12 | L25: 9 | N25: 1 | O25: 11 | P25: 6 | R25: -1 | S25: 10 | T25: 9 | V25: 1 | W25: 12 | X25: 9 | AA25: 0 | AB25: -5 | AC25: 3 | AD25: 5 | AE25: 1 | AF25: 3 | AH25: 2.5 | AI25: 5 | AJ25: 1 | AK25: 0 | AL25: 2 | AT25: -1
A26: 2019-04-20 | B26: -1 | C26: 9 | D26: 10 | F26: 1 | G26: 8 | H26: 12 | J26: 1 | K26: 13 | L26: 9 | N26: 1 | O26: 12 | P26: 6 | R26: 1 | S26: 11 | T26: 9 | V26: 1 | W26: 13 | X26: 9 | AA26: -1 | AB26: -4 | AC26: 4 | AD26: 6 | AE26: 2 | AF26: 4 | AH26: 3.5 | AI26: 5 | AJ26: 1 | AK26: 0 | AL26: 2 | AT26: -1
A27: 2019-04-21 | B27: 1 | C27: 10 | D27: 10 | F27: -1 | G27: 8 | H27: 13 | J27: -1 | K27: 13 | L27: 10 | N27: -1 | O27: 12 | P27: 7 | R27: 1 | S27: 12 | T27: 9 | V27: 1 | W27: 14 | X27: 9 | AA27: 0 | AB27: -5 | AC27: 3 | AD27: 5 | AE27: 3 | AF27: 5 | AH27: 2.5 | AI27: 5 | AJ27: 1 | AK27: 0 | AL27: 1 | AT27: -1
A28: 2019-04-22 | C28: 10 | D28: 10 | G28: 8 | H28: 13 | J28: -1 | K28: 13 | L28: 11 | N28: -1 | O28: 12 | P28: 8 | R28: 1 | S28: 13 | T28: 9 | W28: 14 | X28: 9 | AA28: 0 | AB28: -5 | AC28: 2 | AD28: 4 | AE28: 4 | AF28: 5 | AH28: 2 | AI28: 4.5 | AJ28: 1 | AK28: 0 | AL28: 0 | AT28: -1
A29: 2019-04-23 | B29: 1 | C29: 11 | D29: 10 | F29: 1 | G29: 9 | H29: 13 | J29: -1 | K29: 13 | L29: 12 | N29: -1 | O29: 12 | P29: 9 | R29: 1 | S29: 14 | T29: 9 | V29: 1 | W29: 15 | X29: 9 | AA29: 1 | AB29: -4 | AC29: 1 | AD29: 3 | AE29: 5 | AF29: 6 | AH29: 2 | AI29: 4.5 | AJ29: 2 | AK29: 1 | AL29: 0 | AT29: -2
A30: 2019-04-24 | B30: 1 | C30: 12 | D30: 10 | F30: -1 | G30: 9 | H30: 14 | J30: -1 | K30: 13 | L30: 13 | N30: -1 | O30: =O29+IF(N30>0,N30,0) -> 12 | P30: =P29-IF(N30<0,N30,0) -> 10 | R30: 1 | S30: 15 | T30: 9 | V30: 1 | W30: 16 | X30: 9 | AA30: 2 | AB30: -5 | AC30: 0 | AD30: 2 | AE30: 6 | AF30: 7 | AH30: 2 | AI30: 5.5 | AJ30: 3 | AK30: 2 | AL30: 0 | AT30: -3
A31: 2019-04-25 | B31: -1 | C31: 12 | D31: 11 | F31: 1 | G31: 10 | H31: 14 | K31: 13 | L31: 13 | N31: -1 | O31: 12 | P31: 11 | S31: 15 | T31: 9 | V31: -1 | W31: 16 | X31: 10 | AA31: 1 | AB31: -4 | AC31: 0 | AD31: 1 | AE31: 6 | AF31: 6 | AH31: 2.5 | AI31: 5 | AJ31: 3 | AK31: 2.5 | AL31: 0 | AT31: -3
A32: 2019-04-26 | B32: -1 | C32: 12 | D32: 12 | F32: 1 | G32: 11 | H32: 14 | J32: 1 | K32: 14 | L32: 13 | N32: -1 | O32: 12 | P32: 12 | R32: -1 | S32: 15 | T32: 10 | V32: -1 | W32: 16 | X32: 11 | AA32: 0 | AB32: -3 | AC32: 1 | AD32: 0 | AE32: 5 | AF32: 5 | AH32: 2.5 | AI32: 4 | AJ32: 2 | AK32: 2.5 | AL32: 0 | AT32: -2
A33: 2019-04-27 | B33: 1 | C33: 13 | D33: 12 | F33: -1 | G33: 11 | H33: 15 | J33: 1 | K33: 15 | L33: 13 | N33: -1 | O33: 12 | P33: 13 | R33: 1 | S33: 16 | T33: 10 | V33: -1 | W33: 16 | X33: 12 | AA33: 1 | AB33: -4 | AC33: 2 | AD33: -1 | AE33: 6 | AF33: 4 | AH33: 2.5 | AI33: 5 | AJ33: 2 | AK33: 3.5 | AL33: 0 | AT33: -2
A34: 2019-04-28 | B34: 1 | C34: 14 | D34: 12 | F34: -1 | G34: 11 | H34: 16 | J34: -1 | K34: 15 | L34: 14 | N34: -1 | O34: 12 | P34: 14 | R34: 1 | S34: 17 | T34: 10 | V34: -1 | W34: 16 | X34: 13 | AA34: 2 | AB34: -5 | AC34: 1 | AD34: -2 | AE34: 7 | AF34: 3 | AH34: 2.5 | AI34: 6 | AJ34: 3 | AK34: 4.5 | AL34: 0 | AT34: =IF(AJ34 = 0, MIN(AH34:AI34, AK34:AL34), 0-AJ34) -> -3
A35: 2019-04-29 | C35: 14 | D35: 12 | F35: 1 | G35: 12 | H35: 16 | J35: 1 | K35: 16 | L35: 14 | O35: 12 | P35: 14 | R35: 1 | S35: 18 | T35: 10 | V35: 1 | W35: 17 | X35: 13 | AA35: =C35-D35 -> 2 | AB35: =G35-H35 -> -4 | AC35: =K35-L35 -> 2 | AD35: =O35-P35 -> -2 | AE35: =S35-T35 -> 8 | AF35: =W35-X35 -> 4 | AH35: 3 | AI35: 6 | AJ35: 3 | AK35: 5 | AL35: 0 | AT35: -3
A36: 2019-04-30 | B36: 1 | C36: 15 | D36: 12 | F36: -1 | G36: =G35+IF(F36>0,F36,0) -> 12 | H36: =H35-IF(F36<0,F36,0) -> 17 | J36: 1 | K36: 17 | L36: 14 | N36: 1 | O36: 13 | P36: 14 | R36: 1 | S36: 19 | T36: 10 | V36: 1 | W36: 18 | X36: 13 | AA36: 3 | AB36: -5 | AC36: 3 | AD36: -1 | AE36: 9 | AF36: 5 | AH36: 3 | AI36: 7 | AJ36: 3 | AK36: 5 | AL36: =(MAX($AA36:$AE36)-AE36)/2 -> 0 | AT36: -3
A37: 2019-05-01 | B37: 1 | C37: 16 | D37: 12 | F37: 1 | G37: 13 | H37: 17 | J37: -1 | K37: 17 | L37: 15 | N37: 1 | O37: 14 | P37: 14 | R37: 1 | S37: 20 | T37: 10 | V37: 1 | W37: 19 | X37: 13 | AA37: 4 | AB37: -4 | AC37: 2 | AD37: 0 | AE37: 10 | AF37: 6 | AH37: 3 | AI37: 7 | AJ37: 4 | AK37: 5 | AL37: 0 | AT37: -4
A38: 2019-05-02 | C38: 16 | D38: 12 | F38: -1 | G38: 13 | H38: 18 | J38: -1 | K38: 17 | L38: 16 | O38: 14 | P38: 14 | R38: -1 | S38: 20 | T38: 11 | W38: 19 | X38: 13 | AA38: 4 | AB38: -5 | AC38: 1 | AD38: 0 | AE38: 9 | AF38: 6 | AH38: 2.5 | AI38: 7 | AJ38: 4 | AK38: 4.5 | AL38: 0 | AT38: -4
A39: 2019-05-03 | B39: 1 | C39: =C38+IF(B39>0,B39,0) -> 17 | D39: =D38-IF(B39<0,B39,0) -> 12 | F39: -1 | G39: =G38+IF(F39>0,F39,0) -> 13 | H39: =H38-IF(F39<0,F39,0) -> 19 | J39: 1 | K39: =K38+IF(J39>0,J39,0) -> 18 | L39: =L38-IF(J39<0,J39,0) -> 16 | N39: -1 | O39: 14 | P39: 15 | R39: -1 | S39: =S38+IF(R39>0,R39,0) -> 20 | T39: =T38-IF(R39<0,R39,0) -> 12 | V39: -1 | W39: 19 | X39: 14 | AA39: 5 | AB39: -6 | AC39: 2 | AD39: -1 | AE39: 8 | AF39: 5 | AH39: 1.5 | AI39: 7 | AJ39: 3 | AK39: 4.5 | AL39: 0 | AT39: -3
A40: 2019-05-04 | B40: 1 | C40: =C39+IF(B40>0,B40,0) -> 18 | D40: =D39-IF(B40<0,B40,0) -> 12 | F40: 1 | G40: 14 | H40: 19 | J40: 1 | K40: 19 | L40: 16 | N40: 1 | O40: 15 | P40: 15 | R40: -1 | S40: 20 | T40: 13 | V40: 1 | W40: 20 | X40: 14 | AA40: 6 | AB40: -5 | AC40: 3 | AD40: 0 | AE40: 7 | AF40: 6 | AH40: 0.5 | AI40: 6 | AJ40: 2 | AK40: 3.5 | AL40: 0 | AT40: -2
A41: 2019-05-05 | B41: 1 | C41: 19 | D41: 12 | F41: -1 | G41: 14 | H41: 20 | J41: 1 | K41: 20 | L41: 16 | N41: 1 | O41: 16 | P41: 15 | R41: -1 | S41: 20 | T41: 14 | V41: -1 | W41: 20 | X41: 15 | AA41: 7 | AB41: -6 | AC41: 4 | AD41: 1 | AE41: 6 | AF41: 5 | AH41: 0 | AI41: 6.5 | AJ41: 1.5 | AK41: 3 | AL41: 0.5 | AT41: -1.5
A42: 2019-05-06 | B42: -1 | C42: 19 | D42: 13 | F42: 1 | G42: 15 | H42: 20 | J42: 1 | K42: 21 | L42: 16 | O42: 16 | P42: 15 | R42: 1 | S42: 21 | T42: 14 | W42: 20 | X42: 15 | AA42: 6 | AB42: -5 | AC42: 5 | AD42: 1 | AE42: 7 | AF42: 5 | AH42: 0.5 | AI42: 6 | AJ42: 1 | AK42: 3 | AL42: 0 | AT42: -1
A43: 2019-05-07 | B43: 1 | C43: 20 | D43: 13 | F43: -1 | G43: 15 | H43: 21 | J43: 1 | K43: 22 | L43: 16 | N43: 1 | O43: 17 | P43: 15 | R43: -1 | S43: 21 | T43: 15 | V43: 1 | W43: 21 | X43: 15 | AA43: 7 | AB43: -6 | AC43: 6 | AD43: 2 | AE43: 6 | AF43: 6 | AH43: 0 | AI43: 6.5 | AJ43: 0.5 | AK43: 2.5 | AL43: 0.5 | AT43: -0.5
A44: 2019-05-08 | B44: 1 | C44: 21 | D44: 13 | F44: -1 | G44: 15 | H44: 22 | J44: 1 | K44: 23 | L44: 16 | N44: -1 | O44: 17 | P44: 16 | R44: -1 | S44: 21 | T44: 16 | V44: -1 | W44: 21 | X44: 16 | AA44: 8 | AB44: -7 | AC44: 7 | AD44: 1 | AE44: 5 | AF44: 5 | AH44: 0 | AI44: 7.5 | AJ44: 0.5 | AK44: 3.5 | AL44: 1.5 | AT44: -0.5
A45: 2019-05-09 | B45: 1 | C45: =C44+IF(B45>0,B45,0) -> 22 | D45: =D44-IF(B45<0,B45,0) -> 13 | F45: 1 | G45: =G44+IF(F45>0,F45,0) -> 16 | H45: =H44-IF(F45<0,F45,0) -> 22 | K45: =K44+IF(J45>0,J45,0) -> 23 | L45: =L44-IF(J45<0,J45,0) -> 16 | N45: -1 | O45: 17 | P45: 17 | R45: 1 | S45: =S44+IF(R45>0,R45,0) -> 22 | T45: =T44-IF(R45<0,R45,0) -> 16 | V45: 1 | W45: =W44+IF(V45>0,V45,0) -> 22 | X45: =X44-IF(V45<0,V45,0) -> 16 | AA45: 9 | AB45: -6 | AC45: 7 | AD45: 0 | AE45: 6 | AF45: 6 | AH45: 0 | AI45: 7.5 | AJ45: 1 | AK45: 4.5 | AL45: 1.5 | AT45: -1
A46: 2019-05-10 | B46: -1 | C46: 22 | D46: 14 | F46: 1 | G46: 17 | H46: 22 | J46: 1 | K46: 24 | L46: 16 | N46: 1 | O46: 18 | P46: 17 | R46: -1 | S46: 22 | T46: 17 | V46: 1 | W46: =W45+IF(V46>0,V46,0) -> 23 | X46: =X45-IF(V46<0,V46,0) -> 16 | AA46: 8 | AB46: -5 | AC46: 8 | AD46: 1 | AE46: 5 | AF46: 7 | AH46: 0 | AI46: 6.5 | AJ46: 0 | AK46: 3.5 | AL46: 1.5 | AT46: 0
A47: 2019-05-11 | B47: 1 | C47: 23 | D47: 14 | F47: 1 | G47: 18 | H47: 22 | J47: -1 | K47: 24 | L47: 17 | N47: 1 | O47: 19 | P47: 17 | R47: -1 | S47: 22 | T47: 18 | V47: -1 | W47: 23 | X47: 17 | AA47: 9 | AB47: -4 | AC47: 7 | AD47: 2 | AE47: 4 | AF47: 6 | AH47: 0 | AI47: 6.5 | AJ47: 1 | AK47: 3.5 | AL47: 2.5 | AT47: -1
A48: 2019-05-12 | B48: 1 | C48: 24 | D48: 14 | F48: -1 | G48: =G47+IF(F48>0,F48,0) -> 18 | H48: =H47-IF(F48<0,F48,0) -> 23 | J48: -1 | K48: 24 | L48: 18 | N48: 1 | O48: 20 | P48: 17 | R48: -1 | S48: 22 | T48: 19 | V48: 1 | W48: 24 | X48: 17 | AA48: 10 | AB48: -5 | AC48: 6 | AD48: 3 | AE48: 3 | AF48: 7 | AH48: 0 | AI48: 7.5 | AJ48: 2 | AK48: 3.5 | AL48: 3.5 | AT48: -2
A49: 2019-05-13 | C49: 24 | D49: 14 | G49: 18 | H49: 23 | J49: -1 | K49: 24 | L49: 19 | N49: -1 | O49: 20 | P49: 18 | S49: 22 | T49: 19 | V49: 1 | W49: 25 | X49: 17 | AA49: 10 | AB49: -5 | AC49: 5 | AD49: 2 | AE49: 3 | AF49: 8 | AH49: 0 | AI49: 7.5 | AJ49: 2.5 | AK49: 4 | AL49: 3.5 | AT49: -2.5
A50: 2019-05-14 | B50: 1 | C50: 25 | D50: 14 | F50: -1 | G50: 18 | H50: 24 | J50: 1 | K50: 25 | L50: 19 | N50: 1 | O50: 21 | P50: 18 | R50: 1 | S50: 23 | T50: 19 | V50: -1 | W50: 25 | X50: 18 | AA50: 11 | AB50: -6 | AC50: 6 | AD50: 3 | AE50: 4 | AF50: 7 | AH50: 0 | AI50: 8.5 | AJ50: 2.5 | AK50: 4 | AL50: 3.5 | AT50: -2.5
A51: 2019-05-15 | B51: -1 | C51: 25 | D51: 15 | F51: 1 | G51: 19 | H51: 24 | J51: 1 | K51: 26 | L51: 19 | N51: -1 | O51: =O50+IF(N51>0,N51,0) -> 21 | P51: =P50-IF(N51<0,N51,0) -> 19 | R51: -1 | S51: 23 | T51: 20 | V51: 1 | W51: 26 | X51: 18 | AA51: 10 | AB51: -5 | AC51: 7 | AD51: 2 | AE51: 3 | AF51: 8 | AH51: 0 | AI51: 7.5 | AJ51: 1.5 | AK51: 4 | AL51: 3.5 | AT51: -1.5
A52: 2019-05-16 | B52: -1 | C52: 25 | D52: 16 | F52: 1 | G52: 20 | H52: 24 | J52: 1 | K52: 27 | L52: 19 | N52: -1 | O52: 21 | P52: 20 | R52: -1 | S52: 23 | T52: 21 | W52: 26 | X52: 18 | AA52: 9 | AB52: -4 | AC52: 8 | AD52: 1 | AE52: 2 | AF52: 8 | AH52: 0 | AI52: 6.5 | AJ52: 0.5 | AK52: 4 | AL52: 3.5 | AT52: -0.5
A53: 2019-05-17 | B53: 1 | C53: 26 | D53: 16 | F53: -1 | G53: 20 | H53: 25 | J53: -1 | K53: 27 | L53: 20 | N53: 1 | O53: 22 | P53: 20 | R53: -1 | S53: 23 | T53: 22 | V53: 1 | W53: 27 | X53: 18 | AA53: 10 | AB53: -5 | AC53: 7 | AD53: 2 | AE53: 1 | AF53: 9 | AH53: 0 | AI53: 7.5 | AJ53: 1.5 | AK53: 4 | AL53: 4.5 | AT53: -1.5
A54: 2019-05-18 | B54: -1 | C54: =C53+IF(B54>0,B54,0) -> 26 | D54: =D53-IF(B54<0,B54,0) -> 17 | F54: 1 | G54: =G53+IF(F54>0,F54,0) -> 21 | H54: =H53-IF(F54<0,F54,0) -> 25 | J54: -1 | K54: 27 | L54: 21 | N54: 1 | O54: 23 | P54: 20 | R54: 1 | S54: 24 | T54: 22 | V54: 1 | W54: 28 | X54: 18 | AA54: 9 | AB54: -4 | AC54: 6 | AD54: 3 | AE54: 2 | AF54: 10 | AH54: 0 | AI54: 6.5 | AJ54: 1.5 | AK54: 3 | AL54: 3.5 | AT54: -1.5
A55: 2019-05-19 | B55: 1 | C55: =C54+IF(B55>0,B55,0) -> 27 | D55: =D54-IF(B55<0,B55,0) -> 17 | F55: -1 | G55: 21 | H55: 26 | J55: 1 | K55: 28 | L55: 21 | N55: 1 | O55: 24 | P55: 20 | R55: -1 | S55: 24 | T55: 23 | V55: -1 | W55: 28 | X55: 19 | AA55: 10 | AB55: -5 | AC55: 7 | AD55: 4 | AE55: 1 | AF55: 9 | AH55: 0 | AI55: 7.5 | AJ55: 1.5 | AK55: 3 | AL55: 4.5 | AT55: -1.5
A56: 2019-05-20 | B56: -1 | C56: 27 | D56: 18 | G56: 21 | H56: 26 | K56: 28 | L56: 21 | O56: 24 | P56: 20 | S56: 24 | T56: 23 | V56: 1 | W56: 29 | X56: 19 | AA56: 9 | AB56: -5 | AC56: 7 | AD56: 4 | AE56: 1 | AF56: 10 | AH56: 0 | AI56: 7 | AJ56: 1 | AK56: 2.5 | AL56: 4 | AT56: -1
A57: 2019-05-21 | B57: 1 | C57: 28 | D57: 18 | F57: 1 | G57: 22 | H57: 26 | J57: -1 | K57: 28 | L57: 22 | N57: -1 | O57: 24 | P57: 21 | S57: 24 | T57: 23 | V57: 1 | W57: 30 | X57: 19 | AA57: 10 | AB57: -4 | AC57: 6 | AD57: 3 | AE57: 1 | AF57: 11 | AH57: 0 | AI57: 7 | AJ57: 2 | AK57: 3.5 | AL57: 4.5 | AT57: -2
A58: 2019-05-22 | B58: 1 | C58: 29 | D58: 18 | F58: -1 | G58: 22 | H58: 27 | J58: 1 | K58: 29 | L58: 22 | N58: -1 | O58: 24 | P58: 22 | R58: 0 | S58: 25 | T58: 24 | V58: 1 | W58: 31 | X58: 19 | AA58: 11 | AB58: -5 | AC58: 7 | AD58: 2 | AE58: 1 | AF58: 12 | AH58: 0 | AI58: 8 | AJ58: 2 | AK58: 4.5 | AL58: 5 | AT58: -2
A59: 2019-05-23 | B59: -1 | C59: 29 | D59: 19 | G59: 22 | H59: 27 | K59: 29 | L59: 22 | N59: 1 | O59: 25 | P59: 22 | S59: 25 | T59: 24 | V59: -1 | W59: 31 | X59: 20 | AA59: 10 | AB59: -5 | AC59: 7 | AD59: 3 | AE59: 1 | AF59: 11 | AH59: 0 | AI59: 7.5 | AJ59: 1.5 | AK59: 3.5 | AL59: 4.5 | AT59: -1.5
A60: 2019-05-24 | B60: -1 | C60: 29 | D60: 20 | F60: 1 | G60: 23 | H60: 27 | J60: -1 | K60: 29 | L60: 23 | N60: -1 | O60: 25 | P60: 23 | R60: -1 | S60: 25 | T60: 25 | V60: 1 | W60: 32 | X60: 20 | AA60: 9 | AB60: -4 | AC60: 6 | AD60: 2 | AE60: 0 | AF60: 12 | AH60: 0 | AI60: 6.5 | AJ60: 1.5 | AK60: 3.5 | AL60: 4.5 | AT60: -1.5
A61: 2019-05-25 | B61: 1 | C61: 30 | D61: 20 | F61: -1 | G61: 23 | H61: 28 | J61: -1 | K61: 29 | L61: 24 | N61: -1 | O61: =O60+IF(N61>0,N61,0) -> 25 | P61: =P60-IF(N61<0,N61,0) -> 24 | R61: 1 | S61: 26 | T61: 25 | V61: 1 | W61: 33 | X61: 20 | AA61: 10 | AB61: -5 | AC61: 5 | AD61: 1 | AE61: 1 | AF61: 13 | AH61: 0 | AI61: 7.5 | AJ61: 2.5 | AK61: 4.5 | AL61: 4.5 | AT61: -2.5
A62: 2019-05-26 | B62: -1 | C62: 30 | D62: 21 | F62: 1 | G62: 24 | H62: 28 | J62: 1 | K62: 30 | L62: 24 | N62: -1 | O62: 25 | P62: 25 | R62: -1 | S62: 26 | T62: 26 | V62: 1 | W62: 34 | X62: 20 | AA62: 9 | AB62: -4 | AC62: 6 | AD62: 0 | AE62: 0 | AF62: 14 | AH62: 0 | AI62: 6.5 | AJ62: 1.5 | AK62: 4.5 | AL62: 4.5 | AT62: -1.5
A63: 2019-05-27 | B63: -1 | C63: 30 | D63: 22 | F63: 0 | G63: 25 | H63: 29 | J63: 1 | K63: 31 | L63: 24 | N63: 0 | O63: 26 | P63: 26 | S63: 26 | T63: 26 | V63: 1 | W63: 35 | X63: 20 | AA63: 8 | AB63: -4 | AC63: 7 | AD63: 0 | AE63: 0 | AF63: 15 | AH63: 0 | AI63: 6 | AJ63: 0.5 | AK63: 4 | AL63: 4 | AT63: -0.5
A64: 2019-05-28 | B64: -1 | C64: 30 | D64: 23 | F64: 1 | G64: 26 | H64: 29 | J64: -1 | K64: 31 | L64: 25 | N64: -1 | O64: 26 | P64: 27 | R64: -1 | S64: 26 | T64: 27 | V64: -1 | W64: 35 | X64: 21 | AA64: 7 | AB64: -3 | AC64: 6 | AD64: -1 | AE64: -1 | AF64: 14 | AH64: 0 | AI64: 5 | AJ64: 0.5 | AK64: 4 | AL64: 4 | AT64: -0.5
A65: 2019-05-29 | B65: 1 | C65: 31 | D65: 23 | F65: -1 | G65: 26 | H65: 30 | K65: 31 | L65: 25 | N65: 1 | O65: 27 | P65: 27 | R65: -1 | S65: 26 | T65: 28 | V65: 1 | W65: 36 | X65: 21 | AA65: 8 | AB65: -4 | AC65: 6 | AD65: 0 | AE65: -2 | AF65: 15 | AH65: 0 | AI65: 6 | AJ65: 1 | AK65: 4 | AL65: 5 | AT65: -1
A66: 2019-05-30 | C66: 31 | D66: 23 | G66: 26 | H66: 30 | J66: 1 | K66: 32 | L66: 25 | N66: -1 | O66: 27 | P66: 28 | R66: 1 | S66: 27 | T66: 28 | W66: 36 | X66: 21 | AA66: 8 | AB66: -4 | AC66: 7 | AD66: -1 | AE66: -1 | AF66: 15 | AH66: 0 | AI66: 6 | AJ66: 0.5 | AK66: 4.5 | AL66: 4.5 | AT66: =IF(AJ66 = 0, MIN(AH66:AI66, AK66:AL66), 0-AJ66) -> -0.5
A67: 2019-05-31 | B67: -1 | C67: 31 | D67: 24 | F67: 1 | G67: 27 | H67: 30 | J67: -1 | K67: 32 | L67: 26 | N67: 1 | O67: 28 | P67: 28 | R67: 1 | S67: 28 | T67: 28 | V67: -1 | W67: 36 | X67: 22 | AA67: =C67-D67 -> 7 | AB67: =G67-H67 -> -3 | AC67: =K67-L67 -> 6 | AD67: =O67-P67 -> 0 | AE67: =S67-T67 -> 0 | AF67: =W67-X67 -> 14 | AH67: 0 | AI67: 5 | AJ67: 0.5 | AK67: 3.5 | AL67: 3.5 | AT67: -0.5
A68: 2019-06-01 | B68: -1 | C68: 31 | D68: 25 | F68: -1 | G68: 27 | H68: 31 | J68: 1 | K68: 33 | L68: 26 | N68: -1 | O68: 28 | P68: 29 | R68: 1 | S68: 29 | T68: 28 | V68: 1 | W68: 37 | X68: 22 | AA68: 6 | AB68: -4 | AC68: 7 | AD68: -1 | AE68: 1 | AF68: 15 | AH68: =(MAX($AA68:$AE68)-AA68)/2 -> 0.5 | AI68: =(MAX($AA68:$AE68)-AB68)/2 -> 5.5 | AJ68: =(MAX($AA68:$AE68)-AC68)/2 -> 0 | AK68: =(MAX($AA68:$AE68)-AD68)/2 -> 4 | AL68: =(MAX($AA68:$AE68)-AE68)/2 -> 3 | AT68: 0.5
A69: 2019-06-02 | B69: -1 | C69: 31 | D69: 26 | F69: -1 | G69: 27 | H69: 32 | J69: 1 | K69: 34 | L69: 26 | N69: -1 | O69: 28 | P69: 30 | R69: 1 | S69: =S68+IF(R69>0,R69,0) -> 30 | T69: =T68-IF(R69<0,R69,0) -> 28 | V69: -1 | W69: 37 | X69: 23 | AA69: 5 | AB69: -5 | AC69: 8 | AD69: -2 | AE69: 2 | AF69: 14 | AH69: 1.5 | AI69: 6.5 | AJ69: 0 | AK69: 5 | AL69: 3 | AT69: 1.5
A70: 2019-06-03 | B70: 1 | C70: 32 | D70: 26 | G70: =G69+IF(F70>0,F70,0) -> 27 | H70: =H69-IF(F70<0,F70,0) -> 32 | K70: 34 | L70: 26 | O70: 28 | P70: 30 | S70: 30 | T70: 28 | W70: 37 | X70: 23 | AA70: 6 | AB70: -5 | AC70: 8 | AD70: -2 | AE70: 2 | AF70: 14 | AH70: 1 | AI70: 6.5 | AJ70: 0 | AK70: 5 | AL70: 3 | AT70: 1
A71: 2019-06-04 | B71: 1 | C71: 33 | D71: 26 | F71: 1 | G71: =G70+IF(F71>0,F71,0) -> 28 | H71: =H70-IF(F71<0,F71,0) -> 32 | J71: -1 | K71: =K70+IF(J71>0,J71,0) -> 34 | L71: =L70-IF(J71<0,J71,0) -> 27 | N71: -1 | O71: 28 | P71: 31 | R71: -1 | S71: =S70+IF(R71>0,R71,0) -> 30 | T71: =T70-IF(R71<0,R71,0) -> 29 | V71: -1 | W71: 37 | X71: 24 | AA71: 7 | AB71: -4 | AC71: 7 | AD71: -3 | AE71: 1 | AF71: 13 | AH71: 0 | AI71: 5.5 | AJ71: 0 | AK71: 5 | AL71: 3 | AT71: 0
A72: 2019-06-05 | B72: 1 | C72: 34 | D72: 26 | G72: =G71+IF(F72>0,F72,0) -> 28 | H72: =H71-IF(F72<0,F72,0) -> 32 | J72: -1 | K72: 34 | L72: 28 | N72: 1 | O72: 29 | P72: 31 | S72: 30 | T72: 29 | V72: -1 | W72: 37 | X72: 25 | AA72: 8 | AB72: -4 | AC72: 6 | AD72: -2 | AE72: 1 | AF72: 12 | AH72: 0 | AI72: 6 | AJ72: 1 | AK72: 5 | AL72: 3.5 | AT72: -1
A73: 2019-06-06 | B73: -1 | C73: 34 | D73: 27 | F73: -1 | G73: =G72+IF(F73>0,F73,0) -> 28 | H73: =H72-IF(F73<0,F73,0) -> 33 | J73: 1 | K73: 35 | L73: 28 | N73: 1 | O73: 30 | P73: 31 | R73: 1 | S73: 31 | T73: 29 | W73: 37 | X73: 25 | AA73: 7 | AB73: -5 | AC73: 7 | AD73: -1 | AE73: 2 | AF73: 12 | AH73: 0 | AI73: 6 | AJ73: 0 | AK73: 4 | AL73: 2.5 | AT73: 0
A74: 2019-06-07 | B74: 1 | C74: 35 | D74: 27 | F74: -1 | G74: 28 | H74: 34 | J74: 1 | K74: =K73+IF(J74>0,J74,0) -> 36 | L74: =L73-IF(J74<0,J74,0) -> 28 | N74: -1 | O74: 30 | P74: 32 | R74: -1 | S74: =S73+IF(R74>0,R74,0) -> 31 | T74: =T73-IF(R74<0,R74,0) -> 30 | V74: 1 | W74: 38 | X74: 25 | AA74: 8 | AB74: -6 | AC74: 8 | AD74: -2 | AE74: 1 | AF74: 13 | AH74: 0 | AI74: 7 | AJ74: 0 | AK74: 5 | AL74: 3.5 | AT74: 0
A75: 2019-06-08 | B75: 1 | C75: 36 | D75: 27 | F75: -1 | G75: 28 | H75: 35 | J75: 1 | K75: 37 | L75: 28 | N75: -1 | O75: 30 | P75: 33 | R75: -1 | S75: 31 | T75: 31 | V75: 1 | W75: 39 | X75: 25 | AA75: 9 | AB75: -7 | AC75: 9 | AD75: -3 | AE75: 0 | AF75: 14 | AH75: 0 | AI75: 8 | AJ75: 0 | AK75: 6 | AL75: 4.5 | AT75: 0
A76: 2019-06-09 | B76: 1 | C76: 37 | D76: 27 | F76: 1 | G76: 29 | H76: 35 | J76: 1 | K76: 38 | L76: 28 | N76: -1 | O76: 30 | P76: 34 | R76: -1 | S76: 31 | T76: 32 | V76: -1 | W76: 39 | X76: 26 | AA76: 10 | AB76: -6 | AC76: 10 | AD76: -4 | AE76: -1 | AF76: 13 | AH76: 0 | AI76: 8 | AJ76: 0 | AK76: 7 | AL76: 5.5 | AT76: 0
A77: 2019-06-10 | B77: -1 | C77: 37 | D77: 28 | G77: 29 | H77: 35 | K77: 38 | L77: 28 | N77: -1 | O77: 30 | P77: 35 | R77: 1 | S77: 32 | T77: 32 | V77: -1 | W77: 39 | X77: 27 | AA77: 9 | AB77: -6 | AC77: 10 | AD77: -5 | AE77: 0 | AF77: 12 | AH77: 0.5 | AI77: 8 | AJ77: 0 | AK77: 7.5 | AL77: 5 | AT77: 0.5
A78: 2019-06-11 | B78: -1 | C78: 37 | D78: 29 | F78: -1 | G78: 29 | H78: 36 | J78: -1 | K78: 38 | L78: 29 | N78: -1 | O78: =O77+IF(N78>0,N78,0) -> 30 | P78: =P77-IF(N78<0,N78,0) -> 36 | R78: 1 | S78: 33 | T78: 32 | V78: 1 | W78: 40 | X78: 27 | AA78: 8 | AB78: -7 | AC78: 9 | AD78: -6 | AE78: 1 | AF78: 13 | AH78: 0.5 | AI78: 8 | AJ78: 0 | AK78: 7.5 | AL78: 4 | AT78: 0.5
A79: 2019-06-12 | B79: 1 | C79: 38 | D79: 29 | F79: 1 | G79: 30 | H79: 36 | J79: 1 | K79: 39 | L79: 29 | N79: -1 | O79: 30 | P79: 37 | R79: -1 | S79: 33 | T79: 33 | V79: 1 | W79: 41 | X79: 27 | AA79: 9 | AB79: -6 | AC79: 10 | AD79: -7 | AE79: 0 | AF79: 14 | AH79: 0.5 | AI79: 8 | AJ79: 0 | AK79: 8.5 | AL79: 5 | AT79: 0.5
A80: 2019-06-13 | B80: -1 | C80: 38 | D80: 30 | G80: 30 | H80: 36 | K80: 39 | L80: 29 | N80: -1 | O80: 30 | P80: 38 | R80: 1 | S80: 34 | T80: 33 | W80: 41 | X80: 27 | AA80: 8 | AB80: -6 | AC80: 10 | AD80: -8 | AE80: 1 | AF80: 14 | AH80: 1 | AI80: 8 | AJ80: 0 | AK80: 9 | AL80: 4.5 | AT80: 1
A81: 2019-06-14 | B81: -1 | C81: 38 | D81: 31 | F81: -1 | G81: 30 | H81: 37 | J81: -1 | K81: 39 | L81: 30 | N81: 1 | O81: 31 | P81: 38 | R81: 1 | S81: 35 | T81: 33 | V81: 1 | W81: 42 | X81: 27 | AA81: 7 | AB81: -7 | AC81: 9 | AD81: -7 | AE81: 2 | AF81: 15 | AH81: 1 | AI81: 8 | AJ81: 0 | AK81: 8 | AL81: 3.5 | AT81: 1
A82: 2019-06-15 | B82: 1 | C82: 39 | D82: 31 | F82: -1 | G82: 30 | H82: 38 | J82: -1 | K82: 39 | L82: 31 | N82: -1 | O82: 31 | P82: 39 | R82: -1 | S82: 35 | T82: 34 | V82: -1 | W82: 42 | X82: 28 | AA82: 8 | AB82: -8 | AC82: 8 | AD82: -8 | AE82: 1 | AF82: 14 | AH82: 0 | AI82: 8 | AJ82: 0 | AK82: 8 | AL82: 3.5 | AT82: 0
A83: 2019-06-16 | B83: -1 | C83: 39 | D83: 32 | F83: 1 | G83: 31 | H83: 38 | J83: 1 | K83: 40 | L83: 31 | N83: 1 | O83: 32 | P83: 39 | R83: 1 | S83: 36 | T83: 34 | V83: -1 | W83: 42 | X83: 29 | AA83: 7 | AB83: -7 | AC83: 9 | AD83: -7 | AE83: 2 | AF83: 13 | AH83: 1 | AI83: 8 | AJ83: 0 | AK83: 8 | AL83: 3.5 | AT83: 1
A84: 2019-06-17 | C84: 39 | D84: 32 | F84: 1 | G84: 32 | H84: 38 | J84: -1 | K84: 40 | L84: 32 | O84: 32 | P84: 39 | R84: 1 | S84: 37 | T84: 34 | V84: -1 | W84: 42 | X84: 30 | AA84: 7 | AB84: -6 | AC84: 8 | AD84: -7 | AE84: 3 | AF84: 12 | AH84: 0.5 | AI84: 7 | AJ84: 0 | AK84: 7.5 | AL84: 2.5 | AT84: 0.5
A85: 2019-06-18 | B85: -1 | C85: =C84+IF(B85>0,B85,0) -> 39 | D85: =D84-IF(B85<0,B85,0) -> 33 | F85: 1 | G85: 33 | H85: 38 | J85: -1 | K85: 40 | L85: 33 | N85: -1 | O85: 32 | P85: 40 | R85: -1 | S85: 37 | T85: 35 | V85: 1 | W85: 43 | X85: 30 | AA85: 6 | AB85: -5 | AC85: 7 | AD85: -8 | AE85: 2 | AF85: 13 | AH85: 0.5 | AI85: 6 | AJ85: 0 | AK85: 7.5 | AL85: 2.5 | AT85: 0.5
A86: 2019-06-19 | B86: 1 | C86: 40 | D86: 33 | F86: 1 | G86: =G85+IF(F86>0,F86,0) -> 34 | H86: =H85-IF(F86<0,F86,0) -> 38 | J86: -1 | K86: 40 | L86: 34 | N86: 1 | O86: 33 | P86: 40 | R86: 1 | S86: 38 | T86: 35 | W86: 43 | X86: 30 | AA86: 7 | AB86: -4 | AC86: 6 | AD86: -7 | AE86: 3 | AF86: 13 | AH86: 0 | AI86: 5.5 | AJ86: 0.5 | AK86: 7 | AL86: 2 | AT86: -0.5
A87: 2019-06-20 | B87: 1 | C87: 41 | D87: 33 | F87: 1 | G87: 35 | H87: 38 | J87: -1 | K87: 40 | L87: 35 | O87: 33 | P87: 40 | R87: -1 | S87: 38 | T87: 36 | V87: 1 | W87: 44 | X87: 30 | AA87: 8 | AB87: -3 | AC87: 5 | AD87: -7 | AE87: 2 | AF87: 14 | AH87: 0 | AI87: 5.5 | AJ87: 1.5 | AK87: 7.5 | AL87: 3 | AT87: -1.5
A88: 2019-06-21 | B88: -1 | C88: 41 | D88: 34 | F88: 1 | G88: 36 | H88: 38 | J88: -1 | K88: 40 | L88: 36 | N88: 1 | O88: =O87+IF(N88>0,N88,0) -> 34 | P88: =P87-IF(N88<0,N88,0) -> 40 | R88: 1 | S88: =S87+IF(R88>0,R88,0) -> 39 | T88: =T87-IF(R88<0,R88,0) -> 36 | V88: 1 | W88: 45 | X88: 30 | AA88: 7 | AB88: -2 | AC88: 4 | AD88: -6 | AE88: 3 | AF88: 15 | AH88: 0 | AI88: 4.5 | AJ88: 1.5 | AK88: 6.5 | AL88: 2 | AT88: -1.5
A89: 2019-06-22 | B89: -1 | C89: 41 | D89: 35 | F89: -1 | G89: 36 | H89: 39 | J89: 1 | K89: 41 | L89: 36 | N89: 1 | O89: 35 | P89: 40 | R89: 1 | S89: 40 | T89: 36 | V89: -1 | W89: 45 | X89: 31 | AA89: 6 | AB89: -3 | AC89: 5 | AD89: -5 | AE89: 4 | AF89: 14 | AH89: 0 | AI89: 4.5 | AJ89: 0.5 | AK89: 5.5 | AL89: 1 | AT89: -0.5
A90: 2019-06-23 | B90: 1 | C90: 42 | D90: 35 | F90: -1 | G90: 36 | H90: 40 | J90: 1 | K90: 42 | L90: 36 | N90: 1 | O90: 36 | P90: 40 | R90: -1 | S90: 40 | T90: 37 | V90: -1 | W90: 45 | X90: 32 | AA90: 7 | AB90: -4 | AC90: 6 | AD90: -4 | AE90: 3 | AF90: 13 | AH90: 0 | AI90: 5.5 | AJ90: 0.5 | AK90: 5.5 | AL90: 2 | AT90: -0.5
A91: 2019-06-24 | B91: 1 | C91: 43 | D91: 35 | G91: 36 | H91: 40 | K91: 42 | L91: 36 | O91: 36 | P91: 40 | S91: 40 | T91: 37 | W91: 45 | X91: 32 | AA91: 8 | AB91: -4 | AC91: 6 | AD91: -4 | AE91: 3 | AF91: 13 | AH91: 0 | AI91: 6 | AJ91: 1 | AK91: 6 | AL91: 2.5 | AT91: -1
A92: 2019-06-25 | B92: -1 | C92: 43 | D92: 36 | F92: -1 | G92: 36 | H92: 41 | J92: -1 | K92: 42 | L92: 37 | N92: -1 | O92: 36 | P92: 41 | R92: -1 | S92: 40 | T92: 38 | V92: 1 | W92: 46 | X92: 32 | AA92: 7 | AB92: -5 | AC92: 5 | AD92: -5 | AE92: 2 | AF92: 14 | AH92: 0 | AI92: 6 | AJ92: 1 | AK92: 6 | AL92: 2.5 | AT92: -1
A93: 2019-06-26 | B93: -1 | C93: 43 | D93: 37 | F93: -1 | G93: 36 | H93: 42 | J93: -1 | K93: 42 | L93: 38 | N93: 1 | O93: 37 | P93: 41 | R93: -1 | S93: 40 | T93: 39 | V93: -1 | W93: 46 | X93: 33 | AA93: 6 | AB93: -6 | AC93: 4 | AD93: -4 | AE93: 1 | AF93: 13 | AH93: 0 | AI93: 6 | AJ93: 1 | AK93: 5 | AL93: 2.5 | AT93: -1
A94: 2019-06-27 | B94: 1 | C94: 44 | D94: 37 | G94: 36 | H94: 42 | J94: 1 | K94: 43 | L94: 38 | N94: 1 | O94: 38 | P94: 41 | S94: 40 | T94: 39 | V94: 1 | W94: 47 | X94: 33 | AA94: 7 | AB94: -6 | AC94: 5 | AD94: -3 | AE94: 1 | AF94: 14 | AH94: 0 | AI94: 6.5 | AJ94: 1 | AK94: 5 | AL94: 3 | AT94: -1
A95: 2019-06-28 | B95: -1 | C95: 44 | D95: 38 | F95: 1 | G95: 37 | H95: 42 | J95: -1 | K95: 43 | L95: 39 | N95: 1 | O95: 39 | P95: 41 | R95: -1 | S95: 40 | T95: 40 | V95: 1 | W95: 48 | X95: 33 | AA95: 6 | AB95: -5 | AC95: 4 | AD95: -2 | AE95: 0 | AF95: 15 | AH95: 0 | AI95: 5.5 | AJ95: 1 | AK95: 4 | AL95: 3 | AT95: -1
A96: 2019-06-29 | B96: 1 | C96: 45 | D96: 38 | F96: -1 | G96: 37 | H96: 43 | J96: 1 | K96: 44 | L96: 39 | N96: -1 | O96: 39 | P96: 42 | R96: -1 | S96: 40 | T96: 41 | V96: -1 | W96: 48 | X96: 34 | AA96: 7 | AB96: -6 | AC96: 5 | AD96: -3 | AE96: -1 | AF96: 14 | AH96: 0 | AI96: 6.5 | AJ96: 1 | AK96: 5 | AL96: 4 | AT96: -1
A97: 2019-06-30 | B97: -1 | C97: 45 | D97: 39 | F97: 1 | G97: 38 | H97: 43 | J97: 1 | K97: 45 | L97: 39 | N97: -1 | O97: 39 | P97: 43 | R97: 1 | S97: 41 | T97: 41 | V97: -1 | W97: 48 | X97: 35 | AA97: 6 | AB97: -5 | AC97: 6 | AD97: -4 | AE97: 0 | AF97: 13 | AH97: 0 | AI97: 5.5 | AJ97: 0 | AK97: 5 | AL97: 3 | AT97: 0
A98: 2019-07-01 | B98: -1 | C98: 45 | D98: 40 | F98: -1 | G98: 38 | H98: 44 | J98: 1 | K98: 46 | L98: 39 | N98: 1 | O98: 40 | P98: 43 | S98: 41 | T98: 41 | V98: 1 | W98: 49 | X98: 35 | AA98: 5 | AB98: -6 | AC98: 7 | AD98: -3 | AE98: 0 | AF98: 14 | AH98: 1 | AI98: 6.5 | AJ98: 0 | AK98: 5 | AL98: 3.5 | AT98: =IF(AJ98 = 0, MIN(AH98:AI98, AK98:AL98), 0-AJ98) -> 1
A99: 2019-07-02 | B99: -1 | C99: 45 | D99: 41 | F99: 1 | G99: 39 | H99: 44 | J99: -1 | K99: 46 | L99: 40 | N99: 1 | O99: 41 | P99: 43 | R99: -1 | S99: 41 | T99: 42 | V99: 1 | W99: 50 | X99: 35 | AA99: =C99-D99 -> 4 | AB99: =G99-H99 -> -5 | AC99: =K99-L99 -> 6 | AD99: =O99-P99 -> -2 | AE99: =S99-T99 -> -1 | AF99: =W99-X99 -> 15 | AH99: 1 | AI99: 5.5 | AJ99: 0 | AK99: 4 | AL99: 3.5 | AT99: 1
A100: 2019-07-03 | B100: -1 | C100: 45 | D100: 42 | F100: 1 | G100: 40 | H100: 44 | J100: -1 | K100: 46 | L100: 41 | N100: 1 | O100: 42 | P100: 43 | R100: 1 | S100: =S99+IF(R100>0,R100,0) -> 42 | T100: =T99-IF(R100<0,R100,0) -> 42 | V100: 1 | W100: 51 | X100: 35 | AA100: 3 | AB100: -4 | AC100: 5 | AD100: -1 | AE100: 0 | AF100: 16 | AH100: 1 | AI100: 4.5 | AJ100: 0 | AK100: 3 | AL100: =(MAX($AA100:$AE100)-AE100)/2 -> 2.5 | AT100: 1
A101: 2019-07-04 | B101: 1 | C101: 46 | D101: 42 | F101: 1 | G101: 41 | H101: 44 | J101: -1 | K101: 46 | L101: 42 | N101: -1 | O101: 42 | P101: 44 | R101: 1 | S101: 43 | T101: 42 | V101: 1 | W101: 52 | X101: 35 | AA101: 4 | AB101: -3 | AC101: 4 | AD101: -2 | AE101: 1 | AF101: 17 | AH101: 0 | AI101: 3.5 | AJ101: 0 | AK101: 3 | AL101: 1.5 | AT101: 0
A102: 2019-07-05 | C102: 46 | D102: 42 | G102: 41 | H102: 44 | J102: 1 | K102: 47 | L102: 42 | N102: -1 | O102: 42 | P102: 45 | R102: 1 | S102: 44 | T102: 42 | V102: 1 | W102: 53 | X102: 35 | AA102: 4 | AB102: -3 | AC102: 5 | AD102: -3 | AE102: 2 | AF102: 18 | AH102: 0.5 | AI102: 4 | AJ102: 0 | AK102: 4 | AL102: 1.5 | AT102: 0.5
A103: 2019-07-06 | B103: 1 | C103: 47 | D103: 42 | F103: -1 | G103: =G102+IF(F103>0,F103,0) -> 41 | H103: =H102-IF(F103<0,F103,0) -> 45 | J103: -1 | K103: =K102+IF(J103>0,J103,0) -> 47 | L103: =L102-IF(J103<0,J103,0) -> 43 | N103: 1 | O103: 43 | P103: 45 | R103: -1 | S103: =S102+IF(R103>0,R103,0) -> 44 | T103: =T102-IF(R103<0,R103,0) -> 43 | V103: -1 | W103: 53 | X103: 36 | AA103: 5 | AB103: -4 | AC103: 4 | AD103: -2 | AE103: 1 | AF103: 17 | AH103: 0 | AI103: 4.5 | AJ103: 0.5 | AK103: 3.5 | AL103: 2 | AT103: -0.5
A104: 2019-07-07 | B104: -1 | C104: 47 | D104: 43 | F104: -1 | G104: 41 | H104: 46 | J104: -1 | K104: 47 | L104: 44 | N104: 1 | O104: 44 | P104: 45 | R104: -1 | S104: 44 | T104: 44 | V104: 1 | W104: 54 | X104: 36 | AA104: 4 | AB104: -5 | AC104: 3 | AD104: -1 | AE104: 0 | AF104: 18 | AH104: 0 | AI104: 4.5 | AJ104: 0.5 | AK104: 2.5 | AL104: 2 | AT104: -0.5
A105: 2019-07-08 | C105: 47 | D105: 43 | G105: 41 | H105: 46 | K105: 47 | L105: 44 | O105: 44 | P105: 45 | S105: 44 | T105: 44 | V105: -1 | W105: 54 | X105: 37 | AA105: 4 | AB105: -5 | AC105: 3 | AD105: -1 | AE105: 0 | AF105: 17 | AH105: 0 | AI105: 4.5 | AJ105: 0.5 | AK105: 2.5 | AL105: 2 | AT105: -0.5
A106: 2019-07-09 | C106: 47 | D106: 43 | G106: 41 | H106: 46 | K106: 47 | L106: 44 | O106: 44 | P106: 45 | S106: 44 | T106: 44 | V106: 1 | W106: 55 | X106: 37 | AA106: 4 | AB106: -5 | AC106: 3 | AD106: -1 | AE106: 0 | AF106: 18 | AH106: 0 | AI106: 4.5 | AJ106: 0.5 | AK106: 2.5 | AL106: 2 | AT106: -0.5
A107: 2019-07-10 | C107: 47 | D107: 43 | G107: 41 | H107: 46 | K107: 47 | L107: 44 | O107: 44 | P107: 45 | S107: 44 | T107: 44 | V107: -1 | W107: 55 | X107: 38 | AA107: 4 | AB107: -5 | AC107: 3 | AD107: -1 | AE107: 0 | AF107: 17 | AH107: 0 | AI107: 4.5 | AJ107: 0.5 | AK107: 2.5 | AL107: 2 | AT107: -0.5
A108: 2019-07-11 | C108: 47 | D108: 43 | G108: 41 | H108: 46 | K108: 47 | L108: 44 | O108: 44 | P108: 45 | S108: 44 | T108: 44 | V108: -1 | W108: 55 | X108: 39 | AA108: 4 | AB108: -5 | AC108: 3 | AD108: -1 | AE108: 0 | AF108: 16 | AH108: 0 | AI108: 4.5 | AJ108: 0.5 | AK108: 2.5 | AL108: 2 | AT108: -0.5
A109: 2019-07-12 | B109: 1 | C109: 48 | D109: 43 | F109: -1 | G109: 41 | H109: 47 | J109: -1 | K109: 47 | L109: 45 | N109: -1 | O109: 44 | P109: 46 | R109: -1 | S109: 44 | T109: 45 | V109: -1 | W109: 55 | X109: 40 | AA109: 5 | AB109: -6 | AC109: 2 | AD109: -2 | AE109: -1 | AF109: 15 | AH109: 0 | AI109: 5.5 | AJ109: 1.5 | AK109: 3.5 | AL109: 3 | AT109: -1.5
A110: 2019-07-13 | B110: 1 | C110: 49 | D110: 43 | F110: 1 | G110: =G109+IF(F110>0,F110,0) -> 42 | H110: =H109-IF(F110<0,F110,0) -> 47 | J110: 1 | K110: 48 | L110: 45 | N110: -1 | O110: =O109+IF(N110>0,N110,0) -> 44 | P110: =P109-IF(N110<0,N110,0) -> 47 | R110: 1 | S110: 45 | T110: 45 | V110: -2 | W110: =W109+IF(V110>0,V110,0) -> 55 | X110: =X109-IF(V110<0,V110,0) -> 42 | AA110: 6 | AB110: -5 | AC110: 3 | AD110: -3 | AE110: 0 | AF110: 13 | AH110: 0 | AI110: 5.5 | AJ110: 1.5 | AK110: 4.5 | AL110: 3 | AT110: -1.5
A111: 2019-07-14 | B111: 1 | C111: 50 | D111: 43 | F111: -1 | G111: 42 | H111: 48 | J111: -1 | K111: 48 | L111: 46 | N111: -1 | O111: 44 | P111: 48 | R111: 1 | S111: 46 | T111: 45 | V111: -1 | W111: 55 | X111: 43 | AA111: 7 | AB111: -6 | AC111: 2 | AD111: -4 | AE111: 1 | AF111: 12 | AH111: 0 | AI111: 6.5 | AJ111: 2.5 | AK111: 5.5 | AL111: 3 | AT111: -2.5
A112: 2019-07-15 | B112: -1 | C112: 50 | D112: 44 | F112: 1 | G112: 43 | H112: 48 | J112: -1 | K112: 48 | L112: 47 | N112: -1 | O112: 44 | P112: 49 | R112: 1 | S112: 47 | T112: 45 | W112: 55 | X112: 43 | AA112: 6 | AB112: -5 | AC112: 1 | AD112: -5 | AE112: 2 | AF112: 12 | AH112: 0 | AI112: 5.5 | AJ112: 2.5 | AK112: 5.5 | AL112: 2 | AT112: -2.5
A113: 2019-07-16 | B113: 1 | C113: 51 | D113: 44 | F113: -1 | G113: 43 | H113: 49 | J113: 1 | K113: 49 | L113: 47 | N113: 1 | O113: 45 | P113: 49 | R113: -1 | S113: 47 | T113: 46 | W113: 55 | X113: 43 | AA113: 7 | AB113: -6 | AC113: 2 | AD113: -4 | AE113: 1 | AF113: 12 | AH113: 0 | AI113: 6.5 | AJ113: 2.5 | AK113: 5.5 | AL113: 3 | AT113: -2.5
A114: 2019-07-17 | B114: 1 | C114: 52 | D114: 44 | F114: -1 | G114: 43 | H114: 50 | J114: 1 | K114: 50 | L114: 47 | N114: -1 | O114: 45 | P114: 50 | R114: 1 | S114: 48 | T114: 46 | W114: 55 | X114: 43 | AA114: 8 | AB114: -7 | AC114: 3 | AD114: -5 | AE114: 2 | AF114: 12 | AH114: 0 | AI114: 7.5 | AJ114: 2.5 | AK114: 6.5 | AL114: 3 | AT114: -2.5
A115: 2019-07-18 | C115: 52 | D115: 44 | F115: -1 | G115: 43 | H115: 51 | J115: 1 | K115: 51 | L115: 47 | O115: 45 | P115: 50 | R115: 1 | S115: =S114+IF(R115>0,R115,0) -> 49 | T115: =T114-IF(R115<0,R115,0) -> 46 | W115: 55 | X115: 43 | AA115: 8 | AB115: -8 | AC115: 4 | AD115: -5 | AE115: 3 | AF115: 12 | AH115: 0 | AI115: 8 | AJ115: 2 | AK115: 6.5 | AL115: 2.5 | AT115: -2
A116: 2019-07-19 | B116: 1 | C116: 53 | D116: 44 | F116: -1 | G116: =G115+IF(F116>0,F116,0) -> 43 | H116: =H115-IF(F116<0,F116,0) -> 52 | J116: -1 | K116: 51 | L116: 48 | N116: -1 | O116: 45 | P116: 51 | R116: 1 | S116: =S115+IF(R116>0,R116,0) -> 50 | T116: =T115-IF(R116<0,R116,0) -> 46 | V116: -1 | W116: 55 | X116: 44 | AA116: 9 | AB116: -9 | AC116: 3 | AD116: -6 | AE116: 4 | AF116: 11 | AH116: 0 | AI116: 9 | AJ116: 3 | AK116: 7.5 | AL116: 2.5 | AT116: -3
A117: 2019-07-20 | B117: 1 | C117: =C116+IF(B117>0,B117,0) -> 54 | D117: =D116-IF(B117<0,B117,0) -> 44 | F117: 1 | G117: 44 | H117: 52 | J117: 1 | K117: 52 | L117: 48 | N117: 1 | O117: 46 | P117: 51 | R117: -1 | S117: =S116+IF(R117>0,R117,0) -> 50 | T117: =T116-IF(R117<0,R117,0) -> 47 | V117: 1 | W117: 56 | X117: 44 | AA117: 10 | AB117: -8 | AC117: 4 | AD117: -5 | AE117: 3 | AF117: 12 | AH117: 0 | AI117: 9 | AJ117: 3 | AK117: 7.5 | AL117: 3.5 | AT117: -3
A118: 2019-07-21 | B118: -1 | C118: =C117+IF(B118>0,B118,0) -> 54 | D118: =D117-IF(B118<0,B118,0) -> 45 | F118: -1 | G118: 44 | H118: 53 | J118: 1 | K118: 53 | L118: 48 | N118: -1 | O118: 46 | P118: 52 | R118: 1 | S118: 51 | T118: 47 | V118: -1 | W118: 56 | X118: 45 | AA118: 9 | AB118: -9 | AC118: 5 | AD118: -6 | AE118: 4 | AF118: 11 | AH118: 0 | AI118: 9 | AJ118: 2 | AK118: 7.5 | AL118: 2.5 | AT118: -2
A119: 2019-07-22 | B119: -1 | C119: 54 | D119: 46 | F119: 1 | G119: 45 | H119: 53 | J119: -1 | K119: 53 | L119: 49 | N119: -1 | O119: 46 | P119: 53 | R119: 1 | S119: 52 | T119: 47 | V119: 1 | W119: 57 | X119: 45 | AA119: 8 | AB119: -8 | AC119: 4 | AD119: -7 | AE119: 5 | AF119: 12 | AH119: 0 | AI119: 8 | AJ119: 2 | AK119: 7.5 | AL119: 1.5 | AT119: -2
A120: 2019-07-23 | B120: -1 | C120: 54 | D120: 47 | F120: 1 | G120: 46 | H120: 53 | J120: -1 | K120: 53 | L120: 50 | N120: -1 | O120: 46 | P120: 54 | R120: 1 | S120: 53 | T120: 47 | V120: 1 | W120: 58 | X120: 45 | AA120: 7 | AB120: -7 | AC120: 3 | AD120: -8 | AE120: 6 | AF120: 13 | AH120: 0 | AI120: 7 | AJ120: 2 | AK120: 7.5 | AL120: 0.5 | AT120: -2
A121: 2019-07-24 | B121: 1 | C121: 55 | D121: 47 | F121: -1 | G121: 46 | H121: 54 | J121: 1 | K121: 54 | L121: 50 | N121: -1 | O121: 46 | P121: 55 | R121: 1 | S121: 54 | T121: 47 | V121: -1 | W121: 58 | X121: 46 | AA121: 8 | AB121: -8 | AC121: 4 | AD121: -9 | AE121: 7 | AF121: 12 | AH121: 0 | AI121: 8 | AJ121: 2 | AK121: 8.5 | AL121: 0.5 | AT121: -2
A122: 2019-07-25 | C122: 55 | D122: 47 | G122: 46 | H122: 54 | K122: 54 | L122: 50 | N122: -1 | O122: 46 | P122: 56 | R122: 1 | S122: 55 | T122: 47 | V122: 1 | W122: 59 | X122: 46 | AA122: 8 | AB122: -8 | AC122: 4 | AD122: -10 | AE122: 8 | AF122: 13 | AH122: 0 | AI122: 8 | AJ122: 2 | AK122: 9 | AL122: 0 | AT122: -2
A123: 2019-07-26 | B123: -1 | C123: 55 | D123: 48 | F123: -1 | G123: 46 | H123: 55 | J123: 1 | K123: 55 | L123: 50 | N123: -1 | O123: 46 | P123: 57 | R123: 1 | S123: 56 | T123: 47 | V123: 1 | W123: 60 | X123: 46 | AA123: 7 | AB123: -9 | AC123: 5 | AD123: -11 | AE123: 9 | AF123: 14 | AH123: 1 | AI123: 9 | AJ123: 2 | AK123: 10 | AL123: 0 | AT123: -2
A124: 2019-07-27 | B124: -1 | C124: 55 | D124: 49 | F124: 1 | G124: 47 | H124: 55 | J124: 1 | K124: 56 | L124: 50 | N124: -1 | O124: 46 | P124: 58 | R124: -1 | S124: 56 | T124: 48 | V124: 1 | W124: 61 | X124: 46 | AA124: 6 | AB124: -8 | AC124: 6 | AD124: -12 | AE124: 8 | AF124: 15 | AH124: 1 | AI124: 8 | AJ124: 1 | AK124: 10 | AL124: 0 | AT124: -1
A125: 2019-07-28 | B125: 1 | C125: 56 | D125: 49 | F125: 1 | G125: 48 | H125: 55 | J125: -1 | K125: 56 | L125: 51 | N125: -1 | O125: 46 | P125: 59 | R125: -1 | S125: 56 | T125: 49 | V125: -1 | W125: 61 | X125: 47 | AA125: 7 | AB125: -7 | AC125: 5 | AD125: -13 | AE125: 7 | AF125: 14 | AH125: 0 | AI125: 7 | AJ125: 1 | AK125: 10 | AL125: 0 | AT125: -1
A126: 2019-07-29 | C126: 56 | D126: 49 | F126: 1 | G126: 49 | H126: 55 | K126: 56 | L126: 51 | N126: -1 | O126: 46 | P126: 60 | S126: 56 | T126: 49 | V126: 1 | W126: 62 | X126: 47 | AA126: 7 | AB126: -6 | AC126: 5 | AD126: -14 | AE126: 7 | AF126: 15 | AH126: 0 | AI126: 6.5 | AJ126: 1 | AK126: 10.5 | AL126: 0 | AT126: -1
A127: 2019-07-30 | B127: -1 | C127: 56 | D127: 50 | F127: -1 | G127: 49 | H127: 56 | J127: -1 | K127: 56 | L127: 52 | N127: 1 | O127: 47 | P127: 60 | R127: 1 | S127: 57 | T127: 49 | V127: 1 | W127: 63 | X127: 47 | AA127: 6 | AB127: -7 | AC127: 4 | AD127: -13 | AE127: 8 | AF127: 16 | AH127: 1 | AI127: 7.5 | AJ127: 2 | AK127: 10.5 | AL127: 0 | AT127: -2
A128: 2019-07-31 | B128: 1 | C128: 57 | D128: 50 | F128: 1 | G128: 50 | H128: 56 | J128: 1 | K128: 57 | L128: 52 | N128: -1 | O128: 47 | P128: 61 | R128: -1 | S128: 57 | T128: 50 | V128: -1 | W128: 63 | X128: 48 | AA128: 7 | AB128: -6 | AC128: 5 | AD128: -14 | AE128: 7 | AF128: 15 | AH128: 0 | AI128: 6.5 | AJ128: 1 | AK128: 10.5 | AL128: 0 | AT128: -1
A129: 2019-08-01 | B129: -1 | C129: 57 | D129: 51 | F129: -1 | G129: 50 | H129: 57 | J129: -1 | K129: 57 | L129: 53 | O129: 47 | P129: 61 | R129: 1 | S129: 58 | T129: 50 | V129: -1 | W129: 63 | X129: 49 | AA129: 6 | AB129: -7 | AC129: 4 | AD129: -14 | AE129: 8 | AF129: 14 | AH129: 1 | AI129: 7.5 | AJ129: 2 | AK129: 11 | AL129: 0 | AT129: -2
A130: 2019-08-02 | B130: 1 | C130: 58 | D130: 51 | F130: 1 | G130: 51 | H130: 57 | J130: -1 | K130: 57 | L130: 54 | N130: 1 | O130: 48 | P130: 61 | S130: 58 | T130: 50 | V130: 1 | W130: 64 | X130: 49 | AA130: 7 | AB130: -6 | AC130: 3 | AD130: -13 | AE130: 8 | AF130: 15 | AH130: 0.5 | AI130: 7 | AJ130: 2.5 | AK130: 10.5 | AL130: 0 | AT130: =IF(AJ130 = 0, MIN(AH130:AI130, AK130:AL130), 0-AJ130) -> -2.5
A131: 2019-08-03 | B131: 1 | C131: 59 | D131: 51 | F131: -1 | G131: =G130+IF(F131>0,F131,0) -> 51 | H131: =H130-IF(F131<0,F131,0) -> 58 | J131: -1 | K131: 57 | L131: 55 | N131: -1 | O131: 48 | P131: 62 | R131: -1 | S131: 58 | T131: 51 | V131: 1 | W131: 65 | X131: 49 | AA131: =C131-D131 -> 8 | AB131: =G131-H131 -> -7 | AC131: =K131-L131 -> 2 | AD131: =O131-P131 -> -14 | AE131: =S131-T131 -> 7 | AF131: =W131-X131 -> 16 | AH131: 0 | AI131: 7.5 | AJ131: 3 | AK131: 11 | AL131: 0.5 | AT131: -3
A132: 2019-08-04 | B132: 1 | C132: 60 | D132: 51 | F132: 1 | G132: 52 | H132: 58 | J132: -1 | K132: 57 | L132: 56 | N132: -1 | O132: 48 | P132: 63 | R132: -1 | S132: 58 | T132: 52 | V132: -1 | W132: 65 | X132: 50 | AA132: 9 | AB132: -6 | AC132: 1 | AD132: -15 | AE132: 6 | AF132: 15 | AH132: =(MAX($AA132:$AE132)-AA132)/2 -> 0 | AI132: =(MAX($AA132:$AE132)-AB132)/2 -> 7.5 | AJ132: =(MAX($AA132:$AE132)-AC132)/2 -> 4 | AK132: =(MAX($AA132:$AE132)-AD132)/2 -> 12 | AL132: =(MAX($AA132:$AE132)-AE132)/2 -> 1.5 | AT132: -4
A133: 2019-08-05 | B133: 1 | C133: 61 | D133: 51 | F133: 1 | G133: 53 | H133: 58 | J133: 1 | K133: 58 | L133: 56 | N133: -1 | O133: 48 | P133: 64 | R133: -1 | S133: 58 | T133: 53 | W133: 65 | X133: 50 | AA133: 10 | AB133: -5 | AC133: 2 | AD133: -16 | AE133: 5 | AF133: 15 | AH133: 0 | AI133: 7.5 | AJ133: 4 | AK133: 13 | AL133: 2.5 | AT133: -4
A134: 2019-08-06 | B134: -1 | C134: 61 | D134: 52 | F134: 1 | G134: 54 | H134: 58 | J134: 1 | K134: 59 | L134: 56 | N134: -1 | O134: 48 | P134: 65 | R134: -1 | S134: 58 | T134: 54 | V134: -1 | W134: 65 | X134: 51 | AA134: 9 | AB134: -4 | AC134: 3 | AD134: -17 | AE134: 4 | AF134: 14 | AH134: 0 | AI134: 6.5 | AJ134: 3 | AK134: 13 | AL134: 2.5 | AT134: -3
A135: 2019-08-07 | B135: 1 | C135: 62 | D135: 52 | G135: =G134+IF(F135>0,F135,0) -> 54 | H135: =H134-IF(F135<0,F135,0) -> 58 | J135: 1 | K135: =K134+IF(J135>0,J135,0) -> 60 | L135: =L134-IF(J135<0,J135,0) -> 56 | N135: -1 | O135: 48 | P135: 66 | R135: -1 | S135: =S134+IF(R135>0,R135,0) -> 58 | T135: =T134-IF(R135<0,R135,0) -> 55 | V135: 1 | W135: 66 | X135: 51 | AA135: 10 | AB135: -4 | AC135: 4 | AD135: -18 | AE135: 3 | AF135: 15 | AH135: 0 | AI135: 7 | AJ135: 3 | AK135: 14 | AL135: 3.5 | AT135: -3
A136: 2019-08-08 | B136: 1 | C136: 63 | D136: 52 | F136: -1 | G136: 54 | H136: 59 | K136: 60 | L136: 56 | O136: 48 | P136: 66 | S136: 58 | T136: 55 | V136: -1 | W136: 66 | X136: 52 | AA136: 11 | AB136: -5 | AC136: 4 | AD136: -18 | AE136: 3 | AF136: 14 | AH136: 0 | AI136: 8 | AJ136: 3.5 | AK136: 14.5 | AL136: 4 | AT136: -3.5
A137: 2019-08-09 | B137: -1 | C137: 63 | D137: 53 | F137: 1 | G137: 55 | H137: 59 | J137: 1 | K137: 61 | L137: 56 | N137: -1 | O137: 48 | P137: 67 | R137: 1 | S137: 59 | T137: 55 | V137: -1 | W137: 66 | X137: 53 | AA137: 10 | AB137: -4 | AC137: 5 | AD137: -19 | AE137: 4 | AF137: 13 | AH137: 0 | AI137: 7 | AJ137: 2.5 | AK137: 14.5 | AL137: 3 | AT137: -2.5
A138: 2019-08-10 | B138: -1 | C138: 63 | D138: 54 | F138: 1 | G138: =G137+IF(F138>0,F138,0) -> 56 | H138: =H137-IF(F138<0,F138,0) -> 59 | J138: 1 | K138: 62 | L138: 56 | N138: -1 | O138: 48 | P138: 68 | R138: 1 | S138: 60 | T138: 55 | V138: 1 | W138: 67 | X138: 53 | AA138: 9 | AB138: -3 | AC138: 6 | AD138: -20 | AE138: 5 | AF138: 14 | AH138: 0 | AI138: 6 | AJ138: 1.5 | AK138: 14.5 | AL138: 2 | AT138: -1.5
A139: 2019-08-11 | B139: 1 | C139: 64 | D139: 54 | F139: -1 | G139: 56 | H139: 60 | J139: -1 | K139: 62 | L139: 57 | N139: -1 | O139: 48 | P139: 69 | R139: 1 | S139: 61 | T139: 55 | V139: -1 | W139: 67 | X139: 54 | AA139: 10 | AB139: -4 | AC139: 5 | AD139: -21 | AE139: 6 | AF139: 13 | AH139: 0 | AI139: 7 | AJ139: 2.5 | AK139: 15.5 | AL139: 2 | AT139: -2.5
A140: 2019-08-12 | C140: 64 | D140: 54 | F140: -1 | G140: 56 | H140: 61 | K140: 62 | L140: 57 | N140: 1 | O140: 49 | P140: 69 | S140: 61 | T140: 55 | W140: 67 | X140: 54 | AA140: 10 | AB140: -5 | AC140: 5 | AD140: -20 | AE140: 6 | AF140: 13 | AH140: 0 | AI140: 7.5 | AJ140: 2.5 | AK140: 15 | AL140: 2 | AT140: -2.5
A141: 2019-08-13 | B141: -1 | C141: 64 | D141: 55 | F141: -1 | G141: 56 | H141: 62 | J141: -1 | K141: 62 | L141: 58 | N141: 1 | O141: 50 | P141: 69 | R141: 1 | S141: 62 | T141: 55 | V141: 1 | W141: 68 | X141: 54 | AA141: 9 | AB141: -6 | AC141: 4 | AD141: -19 | AE141: 7 | AF141: 14 | AH141: 0 | AI141: 7.5 | AJ141: 2.5 | AK141: 14 | AL141: 1 | AT141: -2.5
A142: 2019-08-14 | B142: -1 | C142: 64 | D142: 56 | F142: -1 | G142: 56 | H142: 63 | J142: 1 | K142: 63 | L142: 58 | N142: -1 | O142: =O141+IF(N142>0,N142,0) -> 50 | P142: =P141-IF(N142<0,N142,0) -> 70 | R142: 1 | S142: 63 | T142: 55 | V142: -1 | W142: 68 | X142: 55 | AA142: 8 | AB142: -7 | AC142: 5 | AD142: -20 | AE142: 8 | AF142: 13 | AH142: 0 | AI142: 7.5 | AJ142: 1.5 | AK142: 14 | AL142: 0 | AT142: -1.5
A143: 2019-08-15 | B143: -1 | C143: 64 | D143: 57 | F143: 1 | G143: 57 | H143: 63 | K143: 63 | L143: 58 | O143: 50 | P143: 70 | R143: -1 | S143: 63 | T143: 56 | W143: 68 | X143: 55 | AA143: 7 | AB143: -6 | AC143: 5 | AD143: -20 | AE143: 7 | AF143: 13 | AH143: 0 | AI143: 6.5 | AJ143: 1 | AK143: 13.5 | AL143: 0 | AT143: -1
A144: 2019-08-16 | B144: -1 | C144: 64 | D144: 58 | F144: -1 | G144: 57 | H144: 64 | J144: -1 | K144: 63 | L144: 59 | N144: 1 | O144: 51 | P144: 70 | R144: 1 | S144: 64 | T144: 56 | V144: -1 | W144: 68 | X144: 56 | AA144: 6 | AB144: -7 | AC144: 4 | AD144: -19 | AE144: 8 | AF144: 12 | AH144: 1 | AI144: 7.5 | AJ144: 2 | AK144: 13.5 | AL144: 0 | AT144: -2
A145: 2019-08-17 | B145: 1 | C145: 65 | D145: 58 | F145: 1 | G145: 58 | H145: 64 | J145: 1 | K145: 64 | L145: 59 | N145: -1 | O145: 51 | P145: 71 | R145: -1 | S145: 64 | T145: 57 | V145: -1 | W145: 68 | X145: 57 | AA145: 7 | AB145: -6 | AC145: 5 | AD145: -20 | AE145: 7 | AF145: 11 | AH145: 0 | AI145: 6.5 | AJ145: 1 | AK145: 13.5 | AL145: 0 | AT145: -1
A146: 2019-08-18 | B146: 1 | C146: 66 | D146: 58 | F146: -1 | G146: 58 | H146: 65 | J146: -1 | K146: 64 | L146: 60 | N146: -1 | O146: 51 | P146: 72 | R146: 1 | S146: 65 | T146: 57 | V146: 1 | W146: 69 | X146: 57 | AA146: 8 | AB146: -7 | AC146: 4 | AD146: -21 | AE146: 8 | AF146: 12 | AH146: 0 | AI146: 7.5 | AJ146: 2 | AK146: 14.5 | AL146: 0 | AT146: -2
A147: 2019-08-19 | C147: 66 | D147: 58 | F147: -1 | G147: 58 | H147: 66 | J147: -1 | K147: 64 | L147: 61 | N147: -1 | O147: =O146+IF(N147>0,N147,0) -> 51 | P147: =P146-IF(N147<0,N147,0) -> 73 | R147: 1 | S147: 66 | T147: 57 | V147: 1 | W147: 70 | X147: 57 | AA147: 8 | AB147: -8 | AC147: 3 | AD147: -22 | AE147: 9 | AF147: 13 | AH147: 0.5 | AI147: 8.5 | AJ147: 3 | AK147: 15.5 | AL147: 0 | AT147: -3
A148: 2019-08-20 | B148: 1 | C148: 67 | D148: 58 | F148: 1 | G148: 59 | H148: 66 | J148: -1 | K148: 64 | L148: 62 | N148: 1 | O148: 52 | P148: 73 | R148: 1 | S148: 67 | T148: 57 | V148: -1 | W148: 70 | X148: 58 | AA148: 9 | AB148: -7 | AC148: 2 | AD148: -21 | AE148: 10 | AF148: 12 | AH148: 0.5 | AI148: 8.5 | AJ148: 4 | AK148: 15.5 | AL148: 0 | AT148: -4
A149: 2019-08-21 | B149: 1 | C149: 68 | D149: 58 | F149: 1 | G149: 60 | H149: 66 | J149: 1 | K149: 65 | L149: 62 | N149: -1 | O149: 52 | P149: 74 | R149: -1 | S149: 67 | T149: 58 | V149: 1 | W149: 71 | X149: 58 | AA149: 10 | AB149: -6 | AC149: 3 | AD149: -22 | AE149: 9 | AF149: 13 | AH149: 0 | AI149: 8 | AJ149: 3.5 | AK149: 16 | AL149: 0.5 | AT149: -3.5
A150: 2019-08-22 | B150: 1 | C150: 69 | D150: 58 | G150: 60 | H150: 66 | K150: 65 | L150: 62 | N150: -1 | O150: 52 | P150: 75 | R150: 1 | S150: 68 | T150: 58 | W150: 71 | X150: 58 | AA150: 11 | AB150: -6 | AC150: 3 | AD150: -23 | AE150: 10 | AF150: 13 | AH150: 0 | AI150: 8.5 | AJ150: 4 | AK150: 17 | AL150: 0.5 | AT150: -4
A151: 2019-08-23 | B151: -1 | C151: 69 | D151: 59 | F151: -1 | G151: 60 | H151: 67 | J151: 1 | K151: 66 | L151: 62 | N151: 1 | O151: 53 | P151: 75 | R151: 1 | S151: 69 | T151: 58 | V151: 1 | W151: 72 | X151: 58 | AA151: 10 | AB151: -7 | AC151: 4 | AD151: -22 | AE151: 11 | AF151: 14 | AH151: 0.5 | AI151: 9 | AJ151: 3.5 | AK151: 16.5 | AL151: 0 | AT151: -3.5
A152: 2019-08-24 | B152: -1 | C152: 69 | D152: 60 | F152: -1 | G152: 60 | H152: 68 | J152: 1 | K152: 67 | L152: 62 | N152: 1 | O152: 54 | P152: 75 | R152: 1 | S152: 70 | T152: 58 | V152: -1 | W152: 72 | X152: 59 | AA152: 9 | AB152: -8 | AC152: 5 | AD152: -21 | AE152: 12 | AF152: 13 | AH152: 1.5 | AI152: 10 | AJ152: 3.5 | AK152: 16.5 | AL152: 0 | AT152: -3.5
A153: 2019-08-25 | B153: -1 | C153: 69 | D153: 61 | F153: -1 | G153: 60 | H153: 69 | J153: -1 | K153: 67 | L153: 63 | N153: 1 | O153: 55 | P153: 75 | R153: 1 | S153: 71 | T153: 58 | V153: 1 | W153: 73 | X153: 59 | AA153: 8 | AB153: -9 | AC153: 4 | AD153: -20 | AE153: 13 | AF153: 14 | AH153: 2.5 | AI153: 11 | AJ153: 4.5 | AK153: 16.5 | AL153: 0 | AT153: -4.5
A154: 2019-08-26 | C154: 69 | D154: 61 | F154: 1 | G154: 61 | H154: 69 | J154: -1 | K154: 67 | L154: 64 | N154: -1 | O154: 55 | P154: 76 | R154: 1 | S154: 72 | T154: 58 | W154: 73 | X154: 59 | AA154: 8 | AB154: -8 | AC154: 3 | AD154: -21 | AE154: 14 | AF154: 14 | AH154: 3 | AI154: 11 | AJ154: 5.5 | AK154: 17.5 | AL154: 0 | AT154: -5.5
A155: 2019-08-27 | B155: 1 | C155: 70 | D155: 61 | F155: 1 | G155: 62 | H155: 69 | J155: -1 | K155: 67 | L155: 65 | N155: 1 | O155: 56 | P155: 76 | R155: 1 | S155: =S154+IF(R155>0,R155,0) -> 73 | T155: =T154-IF(R155<0,R155,0) -> 58 | V155: -1 | W155: 73 | X155: 60 | AA155: 9 | AB155: -7 | AC155: 2 | AD155: -20 | AE155: 15 | AF155: 13 | AH155: 3 | AI155: 11 | AJ155: 6.5 | AK155: 17.5 | AL155: 0 | AT155: -6.5
A156: 2019-08-28 | B156: 1 | C156: 71 | D156: 61 | F156: 1 | G156: 63 | H156: 69 | J156: 1 | K156: 68 | L156: 65 | N156: -1 | O156: 56 | P156: 77 | R156: -1 | S156: 73 | T156: 59 | V156: 1 | W156: 74 | X156: 60 | AA156: 10 | AB156: -6 | AC156: 3 | AD156: -21 | AE156: 14 | AF156: 14 | AH156: 2 | AI156: 10 | AJ156: 5.5 | AK156: 17.5 | AL156: 0 | AT156: -5.5
A157: 2019-08-29 | B157: 1 | C157: 72 | D157: 61 | F157: -1 | G157: =G156+IF(F157>0,F157,0) -> 63 | H157: =H156-IF(F157<0,F157,0) -> 70 | K157: 68 | L157: 65 | N157: 1 | O157: 57 | P157: 77 | S157: 73 | T157: 59 | V157: 1 | W157: 75 | X157: 60 | AA157: 11 | AB157: -7 | AC157: 3 | AD157: -20 | AE157: 14 | AF157: 15 | AH157: 1.5 | AI157: 10.5 | AJ157: 5.5 | AK157: 17 | AL157: 0 | AT157: -5.5
A158: 2019-08-30 | B158: 1 | C158: 73 | D158: 61 | G158: 63 | H158: 70 | J158: -1 | K158: 68 | L158: 66 | N158: 1 | O158: 58 | P158: 77 | S158: 73 | T158: 59 | V158: 1 | W158: 76 | X158: 60 | AA158: 12 | AB158: -7 | AC158: 2 | AD158: -19 | AE158: 14 | AF158: 16 | AH158: 1 | AI158: 10.5 | AJ158: 6 | AK158: 16.5 | AL158: 0 | AT158: -6
A159: 2019-08-31 | B159: -1 | C159: 73 | D159: 62 | F159: -2 | G159: 63 | H159: 72 | J159: 1 | K159: 69 | L159: 66 | N159: 1 | O159: 59 | P159: 77 | R159: 2 | S159: 75 | T159: 59 | V159: -1 | W159: 76 | X159: 61 | AA159: 11 | AB159: -9 | AC159: 3 | AD159: -18 | AE159: 16 | AF159: 15 | AH159: 2.5 | AI159: 12.5 | AJ159: 6.5 | AK159: 17 | AL159: 0 | AT159: -6.5
A160: 2019-09-01 | B160: -1 | C160: 73 | D160: 63 | F160: 0 | G160: 64 | H160: 73 | J160: 1 | K160: 70 | L160: 66 | N160: 1 | O160: 60 | P160: 77 | R160: 0 | S160: 76 | T160: 60 | V160: 1 | W160: 77 | X160: 61 | AA160: 10 | AB160: -9 | AC160: 4 | AD160: -17 | AE160: 16 | AF160: 16 | AH160: 3 | AI160: 12.5 | AJ160: 6 | AK160: 16.5 | AL160: 0 | AT160: -6
A161: 2019-09-02 | B161: 1 | C161: 74 | D161: 63 | F161: -1 | G161: 64 | H161: 74 | J161: -1 | K161: 70 | L161: 67 | O161: 60 | P161: 77 | R161: 1 | S161: 77 | T161: 60 | V161: 1 | W161: 78 | X161: 61 | AA161: 11 | AB161: -10 | AC161: 3 | AD161: -17 | AE161: 17 | AF161: 17 | AH161: 3 | AI161: 13.5 | AJ161: 7 | AK161: 17 | AL161: 0 | AT161: -7
A162: 2019-09-03 | B162: 1 | C162: 75 | D162: 63 | F162: -1 | G162: 64 | H162: 75 | J162: 1 | K162: 71 | L162: 67 | N162: -1 | O162: 60 | P162: 78 | R162: 1 | S162: 78 | T162: 60 | V162: 1 | W162: 79 | X162: 61 | AA162: 12 | AB162: -11 | AC162: 4 | AD162: -18 | AE162: 18 | AF162: 18 | AH162: 3 | AI162: 14.5 | AJ162: 7 | AK162: 18 | AL162: 0 | AT162: =IF(AJ162 = 0, MIN(AH162:AI162, AK162:AL162), 0-AJ162) -> -7
A163: 2019-09-04 | C163: 75 | D163: 63 | F163: 1 | G163: 65 | H163: 75 | K163: 71 | L163: 67 | N163: 1 | O163: 61 | P163: 78 | R163: -1 | S163: 78 | T163: 61 | V163: -1 | W163: 79 | X163: 62 | AA163: =C163-D163 -> 12 | AB163: =G163-H163 -> -10 | AC163: =K163-L163 -> 4 | AD163: =O163-P163 -> -17 | AE163: =S163-T163 -> 17 | AF163: =W163-X163 -> 17 | AH163: 2.5 | AI163: 13.5 | AJ163: 6.5 | AK163: 17 | AL163: 0 | AT163: -6.5
A164: 2019-09-05 | B164: 1 | C164: 76 | D164: 63 | F164: 1 | G164: 66 | H164: 75 | J164: -1 | K164: 71 | L164: 68 | N164: -1 | O164: 61 | P164: 79 | R164: 1 | S164: 79 | T164: 61 | W164: 79 | X164: 62 | AA164: 13 | AB164: -9 | AC164: 3 | AD164: -18 | AE164: 18 | AF164: 17 | AH164: 2.5 | AI164: 13.5 | AJ164: 7.5 | AK164: 18 | AL164: =(MAX($AA164:$AE164)-AE164)/2 -> 0 | AT164: -7.5
A165: 2019-09-06 | B165: -1 | C165: 76 | D165: 64 | F165: -1 | G165: 66 | H165: 76 | J165: 1 | K165: =K164+IF(J165>0,J165,0) -> 72 | L165: =L164-IF(J165<0,J165,0) -> 68 | N165: 1 | O165: =O164+IF(N165>0,N165,0) -> 62 | P165: =P164-IF(N165<0,N165,0) -> 79 | R165: -1 | S165: 79 | T165: 62 | V165: 1 | W165: 80 | X165: 62 | AA165: 12 | AB165: -10 | AC165: 4 | AD165: -17 | AE165: 17 | AF165: 18 | AH165: 2.5 | AI165: 13.5 | AJ165: 6.5 | AK165: 17 | AL165: 0 | AT165: -6.5
A166: 2019-09-07 | B166: -1 | C166: 76 | D166: 65 | F166: -1 | G166: 66 | H166: 77 | J166: 1 | K166: 73 | L166: 68 | N166: -1 | O166: =O165+IF(N166>0,N166,0) -> 62 | P166: =P165-IF(N166<0,N166,0) -> 80 | R166: 1 | S166: 80 | T166: 62 | V166: 1 | W166: 81 | X166: 62 | AA166: 11 | AB166: -11 | AC166: 5 | AD166: -18 | AE166: 18 | AF166: 19 | AH166: 3.5 | AI166: 14.5 | AJ166: 6.5 | AK166: 18 | AL166: 0 | AT166: -6.5
A167: 2019-09-08 | B167: -1 | C167: 76 | D167: 66 | F167: 1 | G167: =G166+IF(F167>0,F167,0) -> 67 | H167: =H166-IF(F167<0,F167,0) -> 77 | J167: 1 | K167: 74 | L167: 68 | N167: -1 | O167: 62 | P167: 81 | R167: 1 | S167: =S166+IF(R167>0,R167,0) -> 81 | T167: =T166-IF(R167<0,R167,0) -> 62 | V167: 1 | W167: 82 | X167: 62 | AA167: 10 | AB167: -10 | AC167: 6 | AD167: -19 | AE167: 19 | AF167: 20 | AH167: 4.5 | AI167: 14.5 | AJ167: 6.5 | AK167: 19 | AL167: 0 | AT167: -6.5
A168: 2019-09-09 | B168: 1 | C168: 77 | D168: 66 | G168: 67 | H168: 77 | J168: 1 | K168: 75 | L168: 68 | N168: 1 | O168: 63 | P168: 81 | S168: 81 | T168: 62 | V168: 1 | W168: 83 | X168: 62 | AA168: 11 | AB168: -10 | AC168: 7 | AD168: -18 | AE168: 19 | AF168: 21 | AH168: 4 | AI168: 14.5 | AJ168: 6 | AK168: 18.5 | AL168: 0 | AT168: -6
A169: 2019-09-10 | B169: -1 | C169: 77 | D169: 67 | F169: -1 | G169: 67 | H169: 78 | J169: 1 | K169: 76 | L169: 68 | N169: -1 | O169: 63 | P169: 82 | R169: -1 | S169: 81 | T169: 63 | V169: -1 | W169: 83 | X169: 63 | AA169: 10 | AB169: -11 | AC169: 8 | AD169: -19 | AE169: 18 | AF169: 20 | AH169: 4 | AI169: 14.5 | AJ169: 5 | AK169: 18.5 | AL169: 0 | AT169: -5
A170: 2019-09-11 | B170: -1 | C170: 77 | D170: 68 | F170: -1 | G170: 67 | H170: 79 | J170: 1 | K170: 77 | L170: 68 | N170: 1 | O170: 64 | P170: 82 | R170: -1 | S170: 81 | T170: 64 | V170: 1 | W170: 84 | X170: 63 | AA170: 9 | AB170: -12 | AC170: 9 | AD170: -18 | AE170: 17 | AF170: 21 | AH170: 4 | AI170: 14.5 | AJ170: 4 | AK170: 17.5 | AL170: 0 | AT170: -4
A171: 2019-09-12 | B171: 1 | C171: 78 | D171: 68 | F171: 1 | G171: 68 | H171: 79 | J171: 1 | K171: 78 | L171: 68 | N171: 1 | O171: 65 | P171: 82 | R171: 1 | S171: 82 | T171: 64 | W171: 84 | X171: 63 | AA171: 10 | AB171: -11 | AC171: 10 | AD171: -17 | AE171: 18 | AF171: 21 | AH171: 4 | AI171: 14.5 | AJ171: 4 | AK171: 17.5 | AL171: 0 | AT171: -4
A172: 2019-09-13 | B172: 1 | C172: 79 | D172: 68 | F172: 1 | G172: 69 | H172: 79 | J172: -1 | K172: 78 | L172: 69 | N172: -1 | O172: 65 | P172: 83 | R172: 1 | S172: 83 | T172: 64 | V172: 1 | W172: 85 | X172: 63 | AA172: 11 | AB172: -10 | AC172: 9 | AD172: -18 | AE172: 19 | AF172: 22 | AH172: 4 | AI172: 14.5 | AJ172: 5 | AK172: 18.5 | AL172: 0 | AT172: -5
A173: 2019-09-14 | B173: 1 | C173: 80 | D173: 68 | F173: -1 | G173: 69 | H173: 80 | J173: 1 | K173: 79 | L173: 69 | N173: -1 | O173: 65 | P173: 84 | R173: -1 | S173: 83 | T173: 65 | V173: -1 | W173: 85 | X173: 64 | AA173: 12 | AB173: -11 | AC173: 10 | AD173: -19 | AE173: 18 | AF173: 21 | AH173: 3 | AI173: 14.5 | AJ173: 4 | AK173: 18.5 | AL173: 0 | AT173: -4
A174: 2019-09-15 | B174: 1 | C174: 81 | D174: 68 | F174: 1 | G174: 70 | H174: 80 | J174: 1 | K174: 80 | L174: 69 | N174: -1 | O174: 65 | P174: 85 | R174: -1 | S174: 83 | T174: 66 | V174: -1 | W174: =W173+IF(V174>0,V174,0) -> 85 | X174: =X173-IF(V174<0,V174,0) -> 65 | AA174: 13 | AB174: -10 | AC174: 11 | AD174: -20 | AE174: 17 | AF174: 20 | AH174: 2 | AI174: 13.5 | AJ174: 3 | AK174: 18.5 | AL174: 0 | AT174: -3
A175: 2019-09-16 | B175: 1 | C175: 82 | D175: 68 | F175: -1 | G175: 70 | H175: 81 | J175: 1 | K175: 81 | L175: 69 | O175: 65 | P175: 85 | R175: 1 | S175: 84 | T175: 66 | V175: 1 | W175: 86 | X175: 65 | AA175: 14 | AB175: -11 | AC175: 12 | AD175: -20 | AE175: 18 | AF175: 21 | AH175: 2 | AI175: 14.5 | AJ175: 3 | AK175: 19 | AL175: 0 | AT175: -3
A176: 2019-09-17 | B176: -1 | C176: 82 | D176: 69 | F176: 1 | G176: 71 | H176: 81 | J176: 1 | K176: 82 | L176: 69 | N176: -1 | O176: 65 | P176: 86 | R176: -1 | S176: 84 | T176: 67 | V176: -1 | W176: 86 | X176: 66 | AA176: 13 | AB176: -10 | AC176: 13 | AD176: -21 | AE176: 17 | AF176: 20 | AH176: 2 | AI176: 13.5 | AJ176: 2 | AK176: 19 | AL176: 0 | AT176: -2
A177: 2019-09-18 | B177: -1 | C177: 82 | D177: 70 | F177: 1 | G177: 72 | H177: 81 | J177: -1 | K177: 82 | L177: 70 | N177: -1 | O177: 65 | P177: 87 | R177: 1 | S177: 85 | T177: 67 | V177: 1 | W177: 87 | X177: 66 | AA177: 12 | AB177: -9 | AC177: 12 | AD177: -22 | AE177: 18 | AF177: 21 | AH177: 3 | AI177: 13.5 | AJ177: 3 | AK177: 20 | AL177: 0 | AT177: -3
A178: 2019-09-19 | B178: -1 | C178: 82 | D178: 71 | G178: 72 | H178: 81 | J178: 1 | K178: 83 | L178: 70 | N178: -1 | O178: 65 | P178: 88 | R178: 1 | S178: 86 | T178: 67 | W178: 87 | X178: 66 | AA178: 11 | AB178: -9 | AC178: 13 | AD178: -23 | AE178: 19 | AF178: 21 | AH178: 4 | AI178: 14 | AJ178: 3 | AK178: 21 | AL178: 0 | AT178: -3
A179: 2019-09-20 | B179: -1 | C179: 82 | D179: 72 | F179: -1 | G179: 72 | H179: 82 | J179: 1 | K179: 84 | L179: 70 | N179: -1 | O179: 65 | P179: 89 | R179: 1 | S179: 87 | T179: 67 | V179: 1 | W179: 88 | X179: 66 | AA179: 10 | AB179: -10 | AC179: 14 | AD179: -24 | AE179: 20 | AF179: 22 | AH179: 5 | AI179: 15 | AJ179: 3 | AK179: 22 | AL179: 0 | AT179: -3
A180: 2019-09-21 | B180: -1 | C180: 82 | D180: 73 | F180: 1 | G180: 73 | H180: 82 | J180: 1 | K180: 85 | L180: 70 | N180: -1 | O180: 65 | P180: 90 | R180: 1 | S180: =S179+IF(R180>0,R180,0) -> 88 | T180: =T179-IF(R180<0,R180,0) -> 67 | V180: -1 | W180: 88 | X180: 67 | AA180: 9 | AB180: -9 | AC180: 15 | AD180: -25 | AE180: 21 | AF180: 21 | AH180: 6 | AI180: 15 | AJ180: 3 | AK180: 23 | AL180: 0 | AP180: Team | AQ180: GB | AR180: % | AT180: -3
A181: 2019-09-22 | B181: -1 | C181: 82 | D181: 74 | F181: -1 | G181: 73 | H181: 83 | J181: 1 | K181: 86 | L181: 70 | N181: -1 | O181: 65 | P181: 91 | R181: 1 | S181: 89 | T181: 67 | V181: 1 | W181: 89 | X181: 67 | AA181: 8 | AB181: -10 | AC181: 16 | AD181: -26 | AE181: 22 | AF181: 22 | AH181: 7 | AI181: 16 | AJ181: 3 | AK181: 24 | AL181: 0 | AP181: =AL$1 -> STL | AQ181: =AL$190 -> 0 | AR181: =AL$192 -> 0.5617283951 | AT181: -3
A182: 2019-09-23 | C182: =C181+IF(B182>0,B182,0) -> 82 | D182: =D181-IF(B182<0,B182,0) -> 74 | G182: 73 | H182: 83 | K182: 86 | L182: 70 | O182: 65 | P182: 91 | R182: 1 | S182: 90 | T182: 67 | V182: 1 | W182: 90 | X182: 67 | AA182: 8 | AB182: -10 | AC182: 16 | AD182: -26 | AE182: 23 | AF182: 23 | AH182: 7.5 | AI182: 16.5 | AJ182: 3.5 | AK182: 24.5 | AL182: 0 | AP182: =AJ$1 -> MIL | AQ182: =AJ$190 -> 2 | AR182: =AJ$192 -> 0.549382716 | AT182: -3.5
A183: 2019-09-24 | B183: -1 | C183: =C182+IF(B183>0,B183,0) -> 82 | D183: =D182-IF(B183<0,B183,0) -> 75 | F183: -1 | G183: 73 | H183: 84 | J183: 1 | K183: 87 | L183: 70 | N183: 1 | O183: 66 | P183: 91 | R183: -1 | S183: 90 | T183: 68 | V183: 1 | W183: 91 | X183: 67 | AA183: 7 | AB183: -11 | AC183: 17 | AD183: -25 | AE183: 22 | AF183: 24 | AH183: 7.5 | AI183: 16.5 | AJ183: 2.5 | AK183: 23.5 | AL183: 0 | AP183: =AH$1 -> CHC | AQ183: =AH$190 -> 7 | AR183: =AH$192 -> 0.5185185185 | AT183: -2.5
A184: 2019-09-25 | B184: -1 | C184: 82 | D184: 76 | F184: -1 | G184: 73 | H184: 85 | J184: 1 | K184: 88 | L184: 70 | N184: 1 | O184: 67 | P184: 91 | R184: -1 | S184: 90 | T184: 69 | V184: 1 | W184: 92 | X184: 67 | AA184: 6 | AB184: -12 | AC184: 18 | AD184: -24 | AE184: 21 | AF184: 25 | AH184: 7.5 | AI184: 16.5 | AJ184: 1.5 | AK184: 22.5 | AL184: 0 | AP184: =AI$1 -> CIN | AQ184: =AI$190 -> 16 | AR184: =AI$192 -> 0.462962963 | AT184: -1.5
A185: 2019-09-26 | B185: -1 | C185: 82 | D185: 77 | F185: -1 | G185: 73 | H185: 86 | J185: 1 | K185: 89 | L185: 70 | N185: 1 | O185: 68 | P185: 91 | S185: 90 | T185: 69 | W185: 92 | X185: 67 | AA185: 5 | AB185: -13 | AC185: 19 | AD185: -23 | AE185: 21 | AF185: 25 | AH185: 8 | AI185: 17 | AJ185: 1 | AK185: 22 | AL185: 0 | AP185: =AK$1 -> PIT | AQ185: =AK$190 -> 22 | AR185: =AK$192 -> 0.4259259259 | AT185: -1
A186: 2019-09-27 | B186: 1 | C186: =C185+IF(B186>0,B186,0) -> 83 | D186: =D185-IF(B186<0,B186,0) -> 77 | F186: -1 | G186: =G185+IF(F186>0,F186,0) -> 73 | H186: =H185-IF(F186<0,F186,0) -> 87 | J186: -1 | K186: =K185+IF(J186>0,J186,0) -> 89 | L186: =L185-IF(J186<0,J186,0) -> 71 | N186: 1 | O186: =O185+IF(N186>0,N186,0) -> 69 | P186: =P185-IF(N186<0,N186,0) -> 91 | R186: -1 | S186: =S185+IF(R186>0,R186,0) -> 90 | T186: =T185-IF(R186<0,R186,0) -> 70 | V186: 1 | W186: 93 | X186: 67 | AA186: =C186-D186 -> 6 | AB186: =G186-H186 -> -14 | AC186: =K186-L186 -> 18 | AD186: =O186-P186 -> -22 | AE186: =S186-T186 -> 20 | AF186: =W186-X186 -> 26 | AH186: =(MAX($AA186:$AE186)-AA186)/2 -> 7 | AI186: =(MAX($AA186:$AE186)-AB186)/2 -> 17 | AJ186: =(MAX($AA186:$AE186)-AC186)/2 -> 1 | AK186: =(MAX($AA186:$AE186)-AD186)/2 -> 21 | AL186: =(MAX($AA186:$AE186)-AE186)/2 -> 0 | AT186: -1
A187: 2019-09-28 | B187: 1 | C187: 84 | D187: 77 | F187: 1 | G187: 74 | H187: 87 | J187: -1 | K187: 89 | L187: 72 | N187: -1 | O187: 69 | P187: 92 | R187: -1 | S187: 90 | T187: 71 | V187: 1 | W187: 94 | X187: 67 | AA187: 7 | AB187: -13 | AC187: 17 | AD187: -23 | AE187: 19 | AF187: 27 | AH187: 6 | AI187: 16 | AJ187: 1 | AK187: 21 | AL187: 0 | AT187: -1
A188: 2019-09-29 | B188: -1 | C188: =C187+IF(B188>0,B188,0) -> 84 | D188: =D187-IF(B188<0,B188,0) -> 78 | F188: 1 | G188: =G187+IF(F188>0,F188,0) -> 75 | H188: =H187-IF(F188<0,F188,0) -> 87 | J188: -1 | K188: =K187+IF(J188>0,J188,0) -> 89 | L188: =L187-IF(J188<0,J188,0) -> 73 | N188: -1 | O188: =O187+IF(N188>0,N188,0) -> 69 | P188: =P187-IF(N188<0,N188,0) -> 93 | R188: 1 | S188: =S187+IF(R188>0,R188,0) -> 91 | T188: =T187-IF(R188<0,R188,0) -> 71 | V188: 1 | W188: 95 | X188: 67 | AA188: =C188-D188 -> 6 | AB188: =G188-H188 -> -12 | AC188: =K188-L188 -> 16 | AD188: =O188-P188 -> -24 | AE188: =S188-T188 -> 20 | AF188: =W188-X188 -> 28 | AH188: =(MAX($AA188:$AE188)-AA188)/2 -> 7 | AI188: =(MAX($AA188:$AE188)-AB188)/2 -> 16 | AJ188: =(MAX($AA188:$AE188)-AC188)/2 -> 2 | AK188: =(MAX($AA188:$AE188)-AD188)/2 -> 22 | AL188: =(MAX($AA188:$AE188)-AE188)/2 -> 0 | AT188: =IF(AJ188 = 0, MIN(AH188:AI188, AK188:AL188), 0-AJ188) -> -2
A189: 2019-09-30 | C189: 84 | D189: 78 | G189: 75 | H189: 87 | K189: 89 | L189: 73 | O189: 69 | P189: 93 | S189: 91 | T189: 71 | V189: 1 | W189: 96 | X189: 67 | AA189: 6 | AB189: -12 | AC189: 16 | AD189: -24 | AE189: 20 | AF189: 29 | AH189: 7 | AI189: 16 | AJ189: 2 | AK189: 22 | AL189: 0 | AT189: -2
A190: 2019-10-01 | C190: 84 | D190: 78 | G190: 75 | H190: 87 | K190: 89 | L190: 73 | O190: 69 | P190: 93 | S190: 91 | T190: 71 | W190: =W189+IF(V190>0,V190,0) -> 96 | X190: =X189-IF(V190<0,V190,0) -> 67 | AA190: 6 | AB190: -12 | AC190: 16 | AD190: -24 | AE190: 20 | AF190: 29 | AH190: 7 | AI190: 16 | AJ190: 2 | AK190: 22 | AL190: 0 | AT190: -2
AH192: =C190/(C190+D190) -> 0.5185185185 | AI192: =G190/(G190+H190) -> 0.462962963 | AJ192: =K190/(K190+L190) -> 0.549382716 | AK192: =O190/(O190+P190) -> 0.4259259259 | AL192: =S190/(S190+T190) -> 0.5617283951
